Workbook

Sheet Simulador_Plan_Pagos
U5: =IRR(U8:U18) -> -0.1730808859
B6: SIMULADOR PLAN PAGOS PRÉSTAMO VEHICULAR
T7: FECHAS | U7: PAGOS | V7: TCEA 365 | W7: TCED | X7: TCEA 360
B8: PRODUCTO | C8: TRADICIONAL | D8: inputar | T8: =+D39 -> 2025-01-10 | U8: =-G39 -> -60350 | V8: =+XIRR($U$8:U8,$T$8:T8) ->  | W8: =+POWER(V8+1,1/365)-1 ->  | X8: =+IF(B39="","",_xlfn.SWITCH($C$8,"PLAN 50/50",IF(B39=$C$16,POWER(W8+1,360)-1,""),"COMPRA MAESTRA",IF(B39=$C$16+1,POWER(W8+1,360)-1,""),"TRADICIONAL",IF(B39=$C$16,POWER(W8+1,360)-1,""),"CUOTA FLEX",IF(B39=$C$16,POWER(W8+1,360)-1,""))) -> 
B9: MONEDA | C9: SOLES | D9: inputar | T9: =+E40 -> 2025-03-02 | U9: =+N40 -> 1836.032901 | V9: =+XIRR($U$8:U9,$T$8:T9) ->  | W9: =+POWER(V9+1,1/365)-1 ->  | X9: =+IF(B40="","",_xlfn.SWITCH($C$8,"PLAN 50/50",IF(B40=$C$16,POWER(W9+1,360)-1,""),"COMPRA MAESTRA",IF(B40=$C$16+1,POWER(W9+1,360)-1,""),"TRADICIONAL",IF(B40=$C$16,POWER(W9+1,360)-1,""),"CUOTA FLEX",IF(B40=$C$16,POWER(W9+1,360)-1,""))) -> 
B10: MONTO ASEGURADO (PRECIO DEL VEHÍCULO) | C10: 80000 | D10: inputar | T10: =+E41 -> 2025-04-02 | U10: =+N41 -> 1836.032901 | V10: =+XIRR($U$8:U10,$T$8:T10) -> -0.9999994412 | W10: -0.03867732477 | X10: =+IF(B41="","",_xlfn.SWITCH($C$8,"PLAN 50/50",IF(B41=$C$16,POWER(W10+1,360)-1,""),"COMPRA MAESTRA",IF(B41=$C$16+1,POWER(W10+1,360)-1,""),"TRADICIONAL",IF(B41=$C$16,POWER(W10+1,360)-1,""),"CUOTA FLEX",IF(B41=$C$16,POWER(W10+1,360)-1,""))) -> 
B11: CUOTA INICIAL | C11: 24000 | D11: inputar | T11: 2025-05-02 | U11: 1836.032901 | V11: =+XIRR($U$8:U11,$T$8:T11) -> -0.9999424028 | W11: -0.02639081753 | X11: =+IF(B42="","",_xlfn.SWITCH($C$8,"PLAN 50/50",IF(B42=$C$16,POWER(W11+1,360)-1,""),"COMPRA MAESTRA",IF(B42=$C$16+1,POWER(W11+1,360)-1,""),"TRADICIONAL",IF(B42=$C$16,POWER(W11+1,360)-1,""),"CUOTA FLEX",IF(B42=$C$16,POWER(W11+1,360)-1,""))) -> 
E12: OCULTAR | T12: 2025-06-02 | U12: 1836.032901 | V12: =+XIRR($U$8:U12,$T$8:T12) -> -0.9991953025 | W12: -0.01933137434 | X12: =+IF(B43="","",_xlfn.SWITCH($C$8,"PLAN 50/50",IF(B43=$C$16,POWER(W12+1,360)-1,""),"COMPRA MAESTRA",IF(B43=$C$16+1,POWER(W12+1,360)-1,""),"TRADICIONAL",IF(B43=$C$16,POWER(W12+1,360)-1,""),"CUOTA FLEX",IF(B43=$C$16,POWER(W12+1,360)-1,""))) -> 
B13: SERVICIO DE TOMA DE FIRMAS Y DELIVERY, GASTOS NOTARIALES Y REGISTRALES | C13: 650 | D13: inputar | T13: 2025-07-02 | U13: 1836.032901 | V13: =+XIRR($U$8:U13,$T$8:T13) -> -0.995808209 | W13: -0.01488705418 | X13: =+IF(B44="","",_xlfn.SWITCH($C$8,"PLAN 50/50",IF(B44=$C$16,POWER(W13+1,360)-1,""),"COMPRA MAESTRA",IF(B44=$C$16+1,POWER(W13+1,360)-1,""),"TRADICIONAL",IF(B44=$C$16,POWER(W13+1,360)-1,""),"CUOTA FLEX",IF(B44=$C$16,POWER(W13+1,360)-1,""))) -> 
B14: GPS | C14: 3700 | D14: inputar | T14: 2025-08-02 | U14: 1836.032901 | V14: =+XIRR($U$8:U14,$T$8:T14) -> -0.9869534696 | W14: -0.01181792298 | X14: =+IF(B45="","",_xlfn.SWITCH($C$8,"PLAN 50/50",IF(B45=$C$16,POWER(W14+1,360)-1,""),"COMPRA MAESTRA",IF(B45=$C$16+1,POWER(W14+1,360)-1,""),"TRADICIONAL",IF(B45=$C$16,POWER(W14+1,360)-1,""),"CUOTA FLEX",IF(B45=$C$16,POWER(W14+1,360)-1,""))) -> 
B15: MONTO DE PRÉSTAMO | C15: =+C10-C11+C13+C14 -> 60350 | D15: CALCULADO | T15: 2025-09-02 | U15: 1836.032901 | V15: =+XIRR($U$8:U15,$T$8:T15) -> -0.9704270061 | W15: -0.009599907957 | X15: =+IF(B46="","",_xlfn.SWITCH($C$8,"PLAN 50/50",IF(B46=$C$16,POWER(W15+1,360)-1,""),"COMPRA MAESTRA",IF(B46=$C$16+1,POWER(W15+1,360)-1,""),"TRADICIONAL",IF(B46=$C$16,POWER(W15+1,360)-1,""),"CUOTA FLEX",IF(B46=$C$16,POWER(W15+1,360)-1,""))) -> 
B16: CANTIDAD CUOTAS | C16: 72 | D16: inputar | T16: 2025-10-02 | U16: 1836.032901 | V16: =+XIRR($U$8:U16,$T$8:T16) -> -0.9456363909 | W16: -0.00794650565 | X16: =+IF(B47="","",_xlfn.SWITCH($C$8,"PLAN 50/50",IF(B47=$C$16,POWER(W16+1,360)-1,""),"COMPRA MAESTRA",IF(B47=$C$16+1,POWER(W16+1,360)-1,""),"TRADICIONAL",IF(B47=$C$16,POWER(W16+1,360)-1,""),"CUOTA FLEX",IF(B47=$C$16,POWER(W16+1,360)-1,""))) -> 
B17: PERIODICIDAD | C17: Mensual | D17: FIJO | T17: 2025-11-02 | U17: 1836.032901 | V17: =+XIRR($U$8:U17,$T$8:T17) -> -0.9128571246 | W17: -0.006663198393 | X17: =+IF(B48="","",_xlfn.SWITCH($C$8,"PLAN 50/50",IF(B48=$C$16,POWER(W17+1,360)-1,""),"COMPRA MAESTRA",IF(B48=$C$16+1,POWER(W17+1,360)-1,""),"TRADICIONAL",IF(B48=$C$16,POWER(W17+1,360)-1,""),"CUOTA FLEX",IF(B48=$C$16,POWER(W17+1,360)-1,""))) -> 
B18: FECHA ACTIVACION | C18: 2025-01-10 | D18: inputar | T18: 2025-12-02 | U18: 1836.032901 | V18: =+XIRR($U$8:U18,$T$8:T18) -> -0.8735729381 | W18: -0.005649977742 | X18: =+IF(B49="","",_xlfn.SWITCH($C$8,"PLAN 50/50",IF(B49=$C$16,POWER(W18+1,360)-1,""),"COMPRA MAESTRA",IF(B49=$C$16+1,POWER(W18+1,360)-1,""),"TRADICIONAL",IF(B49=$C$16,POWER(W18+1,360)-1,""),"CUOTA FLEX",IF(B49=$C$16,POWER(W18+1,360)-1,""))) -> 
B19: FECHA PAGO 1RA CUOTA | C19: 2025-03-02 | D19: inputar | T19: 2026-01-02 | U19: 1836.032901 | V19: =+XIRR($U$8:U19,$T$8:T19) -> -0.8291115217 | W19: -0.004828698986 | X19: =+IF(B50="","",_xlfn.SWITCH($C$8,"PLAN 50/50",IF(B50=$C$16,POWER(W19+1,360)-1,""),"COMPRA MAESTRA",IF(B50=$C$16+1,POWER(W19+1,360)-1,""),"TRADICIONAL",IF(B50=$C$16,POWER(W19+1,360)-1,""),"CUOTA FLEX",IF(B50=$C$16,POWER(W19+1,360)-1,""))) -> 
B20: TASA DE INTERÉS COMPENSATORIO EFECTIVA ANUAL (TEA FIJA) | C20: 0.2099 | T20: 2026-02-02 | U20: 1836.032901 | V20: =+XIRR($U$8:U20,$T$8:T20) -> -0.7810762294 | W20: -0.004153082655 | X20: =+IF(B51="","",_xlfn.SWITCH($C$8,"PLAN 50/50",IF(B51=$C$16,POWER(W20+1,360)-1,""),"COMPRA MAESTRA",IF(B51=$C$16+1,POWER(W20+1,360)-1,""),"TRADICIONAL",IF(B51=$C$16,POWER(W20+1,360)-1,""),"CUOTA FLEX",IF(B51=$C$16,POWER(W20+1,360)-1,""))) -> 
B21: SEGURO DESGRAVAMEN MENSUAL | C21: 0.00127 | D21: inputar | T21: 2026-03-02 | U21: 1836.032901 | V21: =+XIRR($U$8:U21,$T$8:T21) -> -0.7314214461 | W21: -0.003595198023 | X21: =+IF(B52="","",_xlfn.SWITCH($C$8,"PLAN 50/50",IF(B52=$C$16,POWER(W21+1,360)-1,""),"COMPRA MAESTRA",IF(B52=$C$16+1,POWER(W21+1,360)-1,""),"TRADICIONAL",IF(B52=$C$16,POWER(W21+1,360)-1,""),"CUOTA FLEX",IF(B52=$C$16,POWER(W21+1,360)-1,""))) -> 
B22: SEGURO VEHICULAR ANUAL | C22: 0.048 | D22: inputar | T22: 2026-04-02 | U22: 1836.032901 | V22: =+XIRR($U$8:U22,$T$8:T22) -> -0.6806644894 | W22: -0.003122547475 | X22: =+IF(B53="","",_xlfn.SWITCH($C$8,"PLAN 50/50",IF(B53=$C$16,POWER(W22+1,360)-1,""),"COMPRA MAESTRA",IF(B53=$C$16+1,POWER(W22+1,360)-1,""),"TRADICIONAL",IF(B53=$C$16,POWER(W22+1,360)-1,""),"CUOTA FLEX",IF(B53=$C$16,POWER(W22+1,360)-1,""))) -> 
B23: ENVÍO FÍSICO EECC | C23: 8.75 | D23: inputar | T23: 2026-05-02 | U23: 1836.032901 | V23: =+XIRR($U$8:U23,$T$8:T23) -> -0.6299209304 | W23: -0.002719688338 | X23: =+IF(B54="","",_xlfn.SWITCH($C$8,"PLAN 50/50",IF(B54=$C$16,POWER(W23+1,360)-1,""),"COMPRA MAESTRA",IF(B54=$C$16+1,POWER(W23+1,360)-1,""),"TRADICIONAL",IF(B54=$C$16,POWER(W23+1,360)-1,""),"CUOTA FLEX",IF(B54=$C$16,POWER(W23+1,360)-1,""))) -> 
B24: MONTO CUOTA BALÓN | C24: 0 | D24: inputar | T24: 2026-06-02 | U24: 1836.032901 | V24: =+XIRR($U$8:U24,$T$8:T24) -> -0.5797623478 | W24: -0.002372345609 | X24: =+IF(B55="","",_xlfn.SWITCH($C$8,"PLAN 50/50",IF(B55=$C$16,POWER(W24+1,360)-1,""),"COMPRA MAESTRA",IF(B55=$C$16+1,POWER(W24+1,360)-1,""),"TRADICIONAL",IF(B55=$C$16,POWER(W24+1,360)-1,""),"CUOTA FLEX",IF(B55=$C$16,POWER(W24+1,360)-1,""))) -> 
B25: NRO DE MES CON 1° CUOTA DOBLE | C25: 0 | D25: inputar | T25: 2026-07-02 | U25: 1836.032901 | V25: =+XIRR($U$8:U25,$T$8:T25) -> -0.5308448769 | W25: -0.002071336234 | X25: =+IF(B56="","",_xlfn.SWITCH($C$8,"PLAN 50/50",IF(B56=$C$16,POWER(W25+1,360)-1,""),"COMPRA MAESTRA",IF(B56=$C$16+1,POWER(W25+1,360)-1,""),"TRADICIONAL",IF(B56=$C$16,POWER(W25+1,360)-1,""),"CUOTA FLEX",IF(B56=$C$16,POWER(W25+1,360)-1,""))) -> 
B26: NRO DE MES CON 2° CUOTA DOBLE | C26: 0 | D26: inputar | T26: 2026-08-02 | U26: 1836.032901 | V26: =+XIRR($U$8:U26,$T$8:T26) -> -0.4834302478 | W26: -0.001808075655 | X26: =+IF(B57="","",_xlfn.SWITCH($C$8,"PLAN 50/50",IF(B57=$C$16,POWER(W26+1,360)-1,""),"COMPRA MAESTRA",IF(B57=$C$16+1,POWER(W26+1,360)-1,""),"TRADICIONAL",IF(B57=$C$16,POWER(W26+1,360)-1,""),"CUOTA FLEX",IF(B57=$C$16,POWER(W26+1,360)-1,""))) -> 
B27: VALOR CUOTA | C27: 1836.032901 | D27: CALCULADO | E27: OCULTAR | T27: 2026-09-02 | U27: 1836.032901 | V27: =+XIRR($U$8:U27,$T$8:T27) -> -0.4377891354 | W27: -0.001576504764 | X27: =+IF(B58="","",_xlfn.SWITCH($C$8,"PLAN 50/50",IF(B58=$C$16,POWER(W27+1,360)-1,""),"COMPRA MAESTRA",IF(B58=$C$16+1,POWER(W27+1,360)-1,""),"TRADICIONAL",IF(B58=$C$16,POWER(W27+1,360)-1,""),"CUOTA FLEX",IF(B58=$C$16,POWER(W27+1,360)-1,""))) -> 
B28: SALDO FINAL | C28: =+ROUND(C36,2) -> 61467.9 | D28: CALCULADO | T28: 2026-10-02 | U28: 1836.032901 | V28: =+XIRR($U$8:U28,$T$8:T28) -> -0.3941460676 | W28: -0.001371979502 | X28: =+IF(B59="","",_xlfn.SWITCH($C$8,"PLAN 50/50",IF(B59=$C$16,POWER(W28+1,360)-1,""),"COMPRA MAESTRA",IF(B59=$C$16+1,POWER(W28+1,360)-1,""),"TRADICIONAL",IF(B59=$C$16,POWER(W28+1,360)-1,""),"CUOTA FLEX",IF(B59=$C$16,POWER(W28+1,360)-1,""))) -> 
B29: TCEA | C29: =ROUND(MAX(X8:X80),4) -> 0.3356 | D29: CALCULADO | T29: 2026-11-02 | U29: 1836.032901 | V29: =+XIRR($U$8:U29,$T$8:T29) -> -0.3525111832 | W29: -0.001190123451 | X29: =+IF(B60="","",_xlfn.SWITCH($C$8,"PLAN 50/50",IF(B60=$C$16,POWER(W29+1,360)-1,""),"COMPRA MAESTRA",IF(B60=$C$16+1,POWER(W29+1,360)-1,""),"TRADICIONAL",IF(B60=$C$16,POWER(W29+1,360)-1,""),"CUOTA FLEX",IF(B60=$C$16,POWER(W29+1,360)-1,""))) -> 
B30: CUOTA REDON. | C30: =+ROUND(C27,2) -> 1836.03 | D30: CALCULADO | E30: OCULTAR | T30: 2026-12-02 | U30: 1836.032901 | V30: =+XIRR($U$8:U30,$T$8:T30) -> -0.3129601873 | W30: -0.001027863268 | X30: =+IF(B61="","",_xlfn.SWITCH($C$8,"PLAN 50/50",IF(B61=$C$16,POWER(W30+1,360)-1,""),"COMPRA MAESTRA",IF(B61=$C$16+1,POWER(W30+1,360)-1,""),"TRADICIONAL",IF(B61=$C$16,POWER(W30+1,360)-1,""),"CUOTA FLEX",IF(B61=$C$16,POWER(W30+1,360)-1,""))) -> 
B31: INTERESES | C31: =+ROUND(J112,2) -> 43639.61 | D31: CALCULADO | E31: OCULTAR | T31: 2027-01-02 | U31: 1836.032901 | V31: =+XIRR($U$8:U31,$T$8:T31) -> -0.2754318856 | W31: -0.0008822941272 | X31: =+IF(B62="","",_xlfn.SWITCH($C$8,"PLAN 50/50",IF(B62=$C$16,POWER(W31+1,360)-1,""),"COMPRA MAESTRA",IF(B62=$C$16+1,POWER(W31+1,360)-1,""),"TRADICIONAL",IF(B62=$C$16,POWER(W31+1,360)-1,""),"CUOTA FLEX",IF(B62=$C$16,POWER(W31+1,360)-1,""))) -> 
B32: SEG VEH | C32: =+L112 -> 23040 | D32: CALCULADO | E32: OCULTAR | T32: 2027-02-02 | U32: 1836.032901 | V32: =+XIRR($U$8:U32,$T$8:T32) -> -0.2398923747 | W32: -0.0007512115171 | X32: =+IF(B63="","",_xlfn.SWITCH($C$8,"PLAN 50/50",IF(B63=$C$16,POWER(W32+1,360)-1,""),"COMPRA MAESTRA",IF(B63=$C$16+1,POWER(W32+1,360)-1,""),"TRADICIONAL",IF(B63=$C$16,POWER(W32+1,360)-1,""),"CUOTA FLEX",IF(B63=$C$16,POWER(W32+1,360)-1,""))) -> 
B33: SEG DESG | C33: =+K112 -> 3416.800843 | D33: CALCULADO | E33: OCULTAR | T33: 2027-03-02 | U33: 1836.032901 | V33: =+XIRR($U$8:U33,$T$8:T33) -> -0.2063467376 | W33: -0.0006329738624 | X33: =+IF(B64="","",_xlfn.SWITCH($C$8,"PLAN 50/50",IF(B64=$C$16,POWER(W33+1,360)-1,""),"COMPRA MAESTRA",IF(B64=$C$16+1,POWER(W33+1,360)-1,""),"TRADICIONAL",IF(B64=$C$16,POWER(W33+1,360)-1,""),"CUOTA FLEX",IF(B64=$C$16,POWER(W33+1,360)-1,""))) -> 
B34: PORTES | C34: =+M112 -> 630 | D34: CALCULADO | E34: OCULTAR | T34: 2027-04-02 | U34: 1836.032901 | V34: =+XIRR($U$8:U34,$T$8:T34) -> -0.1746352486 | W34: -0.0005256970263 | X34: =+IF(B65="","",_xlfn.SWITCH($C$8,"PLAN 50/50",IF(B65=$C$16,POWER(W34+1,360)-1,""),"COMPRA MAESTRA",IF(B65=$C$16+1,POWER(W34+1,360)-1,""),"TRADICIONAL",IF(B65=$C$16,POWER(W34+1,360)-1,""),"CUOTA FLEX",IF(B65=$C$16,POWER(W34+1,360)-1,""))) -> 
B35: MONTO A CAPITALIZAR | C35: =+G40-G39 -> 1117.900783 | T35: 2027-05-02 | U35: 1836.032901 | V35: =+XIRR($U$8:U35,$T$8:T35) -> -0.1446966965 | W35: -0.0004281251282 | X35: =+IF(B66="","",_xlfn.SWITCH($C$8,"PLAN 50/50",IF(B66=$C$16,POWER(W35+1,360)-1,""),"COMPRA MAESTRA",IF(B66=$C$16+1,POWER(W35+1,360)-1,""),"TRADICIONAL",IF(B66=$C$16,POWER(W35+1,360)-1,""),"CUOTA FLEX",IF(B66=$C$16,POWER(W35+1,360)-1,""))) -> 
B36: MONTO DE PRÉSTAMO CAPITALIZADO | C36: =+C10-C11+C13+C14+C35 -> 61467.90078 | T36: 2027-06-02 | U36: 1836.032901 | V36: =+XIRR($U$8:U36,$T$8:T36) -> -0.1164318863 | W36: -0.0003390846757 | X36: =+IF(B67="","",_xlfn.SWITCH($C$8,"PLAN 50/50",IF(B67=$C$16,POWER(W36+1,360)-1,""),"COMPRA MAESTRA",IF(B67=$C$16+1,POWER(W36+1,360)-1,""),"TRADICIONAL",IF(B67=$C$16,POWER(W36+1,360)-1,""),"CUOTA FLEX",IF(B67=$C$16,POWER(W36+1,360)-1,""))) -> 
T37: 2027-07-02 | U37: 1836.032901 | V37: =+XIRR($U$8:U37,$T$8:T37) -> -0.08976506889 | W37: -0.0002576450141 | X37: =+IF(B68="","",_xlfn.SWITCH($C$8,"PLAN 50/50",IF(B68=$C$16,POWER(W37+1,360)-1,""),"COMPRA MAESTRA",IF(B68=$C$16+1,POWER(W37+1,360)-1,""),"TRADICIONAL",IF(B68=$C$16,POWER(W37+1,360)-1,""),"CUOTA FLEX",IF(B68=$C$16,POWER(W37+1,360)-1,""))) -> 
B38: NRO CUOTA | C38: DOBLE | D38: FECHA INICIO | E38: FECHA FIN | F38: DIAS | G38: SALDO INICIAL | H38: SALDO FINAL | I38: AMORTIZACIÓN | J38: INTERES | K38: SEG DESG | L38: SEG VEH | M38: PORTES | N38: CUOTA | T38: 2027-08-02 | U38: 1836.032901 | V38: =+XIRR($U$8:U38,$T$8:T38) -> -0.06460141242 | W38: -0.0001829491358 | X38: =+IF(B69="","",_xlfn.SWITCH($C$8,"PLAN 50/50",IF(B69=$C$16,POWER(W38+1,360)-1,""),"COMPRA MAESTRA",IF(B69=$C$16+1,POWER(W38+1,360)-1,""),"TRADICIONAL",IF(B69=$C$16,POWER(W38+1,360)-1,""),"CUOTA FLEX",IF(B69=$C$16,POWER(W38+1,360)-1,""))) -> 
B39: 0 | D39: =+C18 -> 2025-01-10 | E39: =+D40 -> 2025-02-02 | F39: =+IF(B39="","",_xlfn.DAYS(E39,D39)) -> 23 | G39: =+C15 -> 60350 | H39: =+IF(B39="","",G39-I39) -> 61467.90078 | I39: =+N39-SUM(J39:M39) -> -1117.900783 | J39: =IF(B39="","",ROUND(((1+$C$20)^(F39/360)-1)*G39,2)) -> 739.14 | K39: =IF(B39="","",G39*$C$21*F39/30) -> 58.76078333 | L39: =+IF(B39="","",IF(F39>=15,$C$10*$C$22/12,0)) -> 320 | N39: 0 | T39: 2027-09-02 | U39: 1836.032901 | V39: =+XIRR($U$8:U39,$T$8:T39) -> -0.04085871875 | W39: -0.0001142863278 | X39: =+IF(B70="","",_xlfn.SWITCH($C$8,"PLAN 50/50",IF(B70=$C$16,POWER(W39+1,360)-1,""),"COMPRA MAESTRA",IF(B70=$C$16+1,POWER(W39+1,360)-1,""),"TRADICIONAL",IF(B70=$C$16,POWER(W39+1,360)-1,""),"CUOTA FLEX",IF(B70=$C$16,POWER(W39+1,360)-1,""))) -> 
B40: =+IFERROR(IF($C$8="COMPRA MAESTRA",IF(B39<=$C$16,B39+1,""),IF(B39+1<=$C$16,B39+1,"")),"") -> 1 | C40: =+IF(B40="","",IF(OR(MONTH(E40)=$C$25,MONTH(E40)=$C$26),2,1)) -> 1 | D40: =+EDATE(E40,-1) -> 2025-02-02 | E40: =+C19 -> 2025-03-02 | F40: 28 | G40: =+H39 -> 61467.90078 | H40: 60956.39212 | I40: =+IF(B40="","",_xlfn.SWITCH($C$8,"PLAN 50/50",IF(B40=$C$16,$G$40,0),"CUOTA FLEX",IF(B40=$C$16,$G$40,0),"COMPRA MAESTRA",IF(B40=$C$16+1,$C$24-SUM(J40:M40),C40*$C$27-SUM(J40:M40)),C40*$C$27-SUM(J40:M40))) -> 511.5086672 | J40: 917.71 | K40: =IF(B40="","",G40*$C$21) -> 78.06423399 | L40: =+IF(B40="","",$C$10*$C$22/12) -> 320 | M40: =+IF(B40="","",$C$23) -> 8.75 | N40: =IF(B40="","",_xlfn.SWITCH($C$8,"PLAN 50/50",IF(B40=$C$16,$H$40+SUM(J40:M40),SUM(I40:M40)),"COMPRA MAESTRA",IF(B40=$C$16+1,$C$24,SUM(I40:M40)),SUM(I40:M40))) -> 1836.032901 | T40: 2027-10-02 | U40: 1836.032901 | V40: =+XIRR($U$8:U40,$T$8:T40) -> -0.01845740378 | W40: -5.103942923e-05 | X40: =+IF(B71="","",_xlfn.SWITCH($C$8,"PLAN 50/50",IF(B71=$C$16,POWER(W40+1,360)-1,""),"COMPRA MAESTRA",IF(B71=$C$16+1,POWER(W40+1,360)-1,""),"TRADICIONAL",IF(B71=$C$16,POWER(W40+1,360)-1,""),"CUOTA FLEX",IF(B71=$C$16,POWER(W40+1,360)-1,""))) -> 
B41: 2 | C41: 1 | D41: =IF(B41="","",EDATE(E41,-1)) -> 2025-03-02 | E41: =IF(B41="","",EDATE(E40,1)) -> 2025-04-02 | F41: 31 | G41: =IF(B41="","",G40-I40) -> 60956.39212 | H41: 60534.91383 | I41: =+IF(B41="","",_xlfn.SWITCH($C$8,"PLAN 50/50",IF(B41=$C$16,$G$40,0),"CUOTA FLEX",IF(B41=$C$16,$G$40,0),"COMPRA MAESTRA",IF(B41=$C$16+1,$C$24-SUM(J41:M41),C41*$C$27-SUM(J41:M41)),C41*$C$27-SUM(J41:M41))) -> 421.4782832 | J41: =IF(B41="","",ROUND(((1+$C$20)^(F41/360)-1)*G41,2)) -> 1008.39 | K41: 77.41461799 | L41: 320 | M41: =+IF(B41="","",$C$23) -> 8.75 | N41: =IF(B41="","",_xlfn.SWITCH($C$8,"PLAN 50/50",IF(B41=$C$16,$H$40+SUM(J41:M41),SUM(I41:M41)),"COMPRA MAESTRA",IF(B41=$C$16+1,$C$24,SUM(I41:M41)),SUM(I41:M41))) -> 1836.032901 | T41: 2027-11-02 | U41: 1836.032901 | V41: =+XIRR($U$8:U41,$T$8:T41) -> 0.002684387565 | W41: 7.344659934e-06 | X41: =+IF(B72="","",_xlfn.SWITCH($C$8,"PLAN 50/50",IF(B72=$C$16,POWER(W41+1,360)-1,""),"COMPRA MAESTRA",IF(B72=$C$16+1,POWER(W41+1,360)-1,""),"TRADICIONAL",IF(B72=$C$16,POWER(W41+1,360)-1,""),"CUOTA FLEX",IF(B72=$C$16,POWER(W41+1,360)-1,""))) -> 
B42: 3 | C42: 1 | D42: 2025-04-02 | E42: =IF(B42="","",EDATE(E41,1)) -> 2025-05-02 | F42: 30 | G42: 60534.91383 | H42: 60073.36027 | I42: =+IF(B42="","",_xlfn.SWITCH($C$8,"PLAN 50/50",IF(B42=$C$16,$G$40,0),"CUOTA FLEX",IF(B42=$C$16,$G$40,0),"COMPRA MAESTRA",IF(B42=$C$16+1,$C$24-SUM(J42:M42),C42*$C$27-SUM(J42:M42)),C42*$C$27-SUM(J42:M42))) -> 461.5535606 | J42: =IF(B42="","",ROUND(((1+$C$20)^(F42/360)-1)*G42,2)) -> 968.85 | K42: 76.87934057 | L42: 320 | M42: 8.75 | N42: =IF(B42="","",_xlfn.SWITCH($C$8,"PLAN 50/50",IF(B42=$C$16,$H$40+SUM(J42:M42),SUM(I42:M42)),"COMPRA MAESTRA",IF(B42=$C$16+1,$C$24,SUM(I42:M42)),SUM(I42:M42))) -> 1836.032901 | T42: 2027-12-02 | U42: 1836.032901 | V42: =+XIRR($U$8:U42,$T$8:T42) -> 0.02264237106 | W42: 6.134390185e-05 | X42: =+IF(B73="","",_xlfn.SWITCH($C$8,"PLAN 50/50",IF(B73=$C$16,POWER(W42+1,360)-1,""),"COMPRA MAESTRA",IF(B73=$C$16+1,POWER(W42+1,360)-1,""),"TRADICIONAL",IF(B73=$C$16,POWER(W42+1,360)-1,""),"CUOTA FLEX",IF(B73=$C$16,POWER(W42+1,360)-1,""))) -> 
B43: 4 | C43: 1 | D43: 2025-05-02 | E43: 2025-06-02 | F43: 31 | G43: 60073.36027 | H43: 59636.15054 | I43: =+IF(B43="","",_xlfn.SWITCH($C$8,"PLAN 50/50",IF(B43=$C$16,$G$40,0),"CUOTA FLEX",IF(B43=$C$16,$G$40,0),"COMPRA MAESTRA",IF(B43=$C$16+1,$C$24-SUM(J43:M43),C43*$C$27-SUM(J43:M43)),C43*$C$27-SUM(J43:M43))) -> 437.2097337 | J43: 993.78 | K43: 76.29316755 | L43: 320 | M43: 8.75 | N43: =IF(B43="","",_xlfn.SWITCH($C$8,"PLAN 50/50",IF(B43=$C$16,$H$40+SUM(J43:M43),SUM(I43:M43)),"COMPRA MAESTRA",IF(B43=$C$16+1,$C$24,SUM(I43:M43)),SUM(I43:M43))) -> 1836.032901 | T43: 2028-01-02 | U43: 1836.032901 | V43: =+XIRR($U$8:U43,$T$8:T43) -> 0.04148826301 | W43: 0.0001113780167 | X43: =+IF(B74="","",_xlfn.SWITCH($C$8,"PLAN 50/50",IF(B74=$C$16,POWER(W43+1,360)-1,""),"COMPRA MAESTRA",IF(B74=$C$16+1,POWER(W43+1,360)-1,""),"TRADICIONAL",IF(B74=$C$16,POWER(W43+1,360)-1,""),"CUOTA FLEX",IF(B74=$C$16,POWER(W43+1,360)-1,""))) -> 
B44: 5 | C44: 1 | D44: 2025-06-02 | E44: 2025-07-02 | F44: 30 | G44: 59636.15054 | H44: 59159.07555 | I44: =+IF(B44="","",_xlfn.SWITCH($C$8,"PLAN 50/50",IF(B44=$C$16,$G$40,0),"CUOTA FLEX",IF(B44=$C$16,$G$40,0),"COMPRA MAESTRA",IF(B44=$C$16+1,$C$24-SUM(J44:M44),C44*$C$27-SUM(J44:M44)),C44*$C$27-SUM(J44:M44))) -> 477.07499 | J44: 954.47 | K44: 75.73791118 | L44: 320 | M44: 8.75 | N44: =IF(B44="","",_xlfn.SWITCH($C$8,"PLAN 50/50",IF(B44=$C$16,$H$40+SUM(J44:M44),SUM(I44:M44)),"COMPRA MAESTRA",IF(B44=$C$16+1,$C$24,SUM(I44:M44)),SUM(I44:M44))) -> 1836.032901 | T44: 2028-02-02 | U44: 1836.032901 | V44: =+XIRR($U$8:U44,$T$8:T44) -> 0.05928926766 | W44: 0.0001578156873 | X44: =+IF(B75="","",_xlfn.SWITCH($C$8,"PLAN 50/50",IF(B75=$C$16,POWER(W44+1,360)-1,""),"COMPRA MAESTRA",IF(B75=$C$16+1,POWER(W44+1,360)-1,""),"TRADICIONAL",IF(B75=$C$16,POWER(W44+1,360)-1,""),"CUOTA FLEX",IF(B75=$C$16,POWER(W44+1,360)-1,""))) -> 
B45: 6 | C45: 1 | D45: 2025-07-02 | E45: 2025-08-02 | F45: 31 | G45: 59159.07555 | H45: 58705.57467 | I45: =+IF(B45="","",_xlfn.SWITCH($C$8,"PLAN 50/50",IF(B45=$C$16,$G$40,0),"CUOTA FLEX",IF(B45=$C$16,$G$40,0),"COMPRA MAESTRA",IF(B45=$C$16+1,$C$24-SUM(J45:M45),C45*$C$27-SUM(J45:M45)),C45*$C$27-SUM(J45:M45))) -> 453.5008753 | J45: 978.65 | K45: 75.13202595 | L45: 320 | M45: 8.75 | N45: =IF(B45="","",_xlfn.SWITCH($C$8,"PLAN 50/50",IF(B45=$C$16,$H$40+SUM(J45:M45),SUM(I45:M45)),"COMPRA MAESTRA",IF(B45=$C$16+1,$C$24,SUM(I45:M45)),SUM(I45:M45))) -> 1836.032901 | T45: 2028-03-02 | U45: 1836.032901 | V45: =+XIRR($U$8:U45,$T$8:T45) -> 0.07611563504 | W45: 0.0002010008102 | X45: =+IF(B76="","",_xlfn.SWITCH($C$8,"PLAN 50/50",IF(B76=$C$16,POWER(W45+1,360)-1,""),"COMPRA MAESTRA",IF(B76=$C$16+1,POWER(W45+1,360)-1,""),"TRADICIONAL",IF(B76=$C$16,POWER(W45+1,360)-1,""),"CUOTA FLEX",IF(B76=$C$16,POWER(W45+1,360)-1,""))) -> 
B46: 7 | C46: 1 | D46: 2025-08-02 | E46: 2025-09-02 | F46: 31 | G46: 58705.57467 | H46: 58243.99785 | I46: =+IF(B46="","",_xlfn.SWITCH($C$8,"PLAN 50/50",IF(B46=$C$16,$G$40,0),"CUOTA FLEX",IF(B46=$C$16,$G$40,0),"COMPRA MAESTRA",IF(B46=$C$16+1,$C$24-SUM(J46:M46),C46*$C$27-SUM(J46:M46)),C46*$C$27-SUM(J46:M46))) -> 461.5768214 | J46: 971.15 | K46: 74.55607984 | L46: 320 | M46: 8.75 | N46: =IF(B46="","",_xlfn.SWITCH($C$8,"PLAN 50/50",IF(B46=$C$16,$H$40+SUM(J46:M46),SUM(I46:M46)),"COMPRA MAESTRA",IF(B46=$C$16+1,$C$24,SUM(I46:M46)),SUM(I46:M46))) -> 1836.032901 | T46: 2028-04-02 | U46: 1836.032901 | V46: =+XIRR($U$8:U46,$T$8:T46) -> 0.09202268422 | W46: 0.0002412116901 | X46: =+IF(B77="","",_xlfn.SWITCH($C$8,"PLAN 50/50",IF(B77=$C$16,POWER(W46+1,360)-1,""),"COMPRA MAESTRA",IF(B77=$C$16+1,POWER(W46+1,360)-1,""),"TRADICIONAL",IF(B77=$C$16,POWER(W46+1,360)-1,""),"CUOTA FLEX",IF(B77=$C$16,POWER(W46+1,360)-1,""))) -> 
B47: 8 | C47: 1 | D47: 2025-09-02 | E47: 2025-10-02 | F47: 30 | G47: 58243.99785 | H47: 57742.87483 | I47: =+IF(B47="","",_xlfn.SWITCH($C$8,"PLAN 50/50",IF(B47=$C$16,$G$40,0),"CUOTA FLEX",IF(B47=$C$16,$G$40,0),"COMPRA MAESTRA",IF(B47=$C$16+1,$C$24-SUM(J47:M47),C47*$C$27-SUM(J47:M47)),C47*$C$27-SUM(J47:M47))) -> 501.1230239 | J47: 932.19 | K47: 73.96987727 | L47: 320 | M47: 8.75 | N47: =IF(B47="","",_xlfn.SWITCH($C$8,"PLAN 50/50",IF(B47=$C$16,$H$40+SUM(J47:M47),SUM(I47:M47)),"COMPRA MAESTRA",IF(B47=$C$16+1,$C$24,SUM(I47:M47)),SUM(I47:M47))) -> 1836.032901 | T47: 2028-05-02 | U47: 1836.032901 | V47: =+XIRR($U$8:U47,$T$8:T47) -> 0.1070705235 | W47: 0.0002787165289 | X47: =+IF(B78="","",_xlfn.SWITCH($C$8,"PLAN 50/50",IF(B78=$C$16,POWER(W47+1,360)-1,""),"COMPRA MAESTRA",IF(B78=$C$16+1,POWER(W47+1,360)-1,""),"TRADICIONAL",IF(B78=$C$16,POWER(W47+1,360)-1,""),"CUOTA FLEX",IF(B78=$C$16,POWER(W47+1,360)-1,""))) -> 
B48: 9 | C48: 1 | D48: 2025-10-02 | E48: 2025-11-02 | F48: 31 | G48: 57742.87483 | H48: 57264.15538 | I48: =+IF(B48="","",_xlfn.SWITCH($C$8,"PLAN 50/50",IF(B48=$C$16,$G$40,0),"CUOTA FLEX",IF(B48=$C$16,$G$40,0),"COMPRA MAESTRA",IF(B48=$C$16+1,$C$24-SUM(J48:M48),C48*$C$27-SUM(J48:M48)),C48*$C$27-SUM(J48:M48))) -> 478.7194502 | J48: 955.23 | K48: 73.33345103 | L48: 320 | M48: 8.75 | N48: =IF(B48="","",_xlfn.SWITCH($C$8,"PLAN 50/50",IF(B48=$C$16,$H$40+SUM(J48:M48),SUM(I48:M48)),"COMPRA MAESTRA",IF(B48=$C$16+1,$C$24,SUM(I48:M48)),SUM(I48:M48))) -> 1836.032901 | T48: 2028-06-02 | U48: 1836.032901 | V48: =+XIRR($U$8:U48,$T$8:T48) -> 0.1213083088 | W48: 0.0003137372503 | X48: =+IF(B79="","",_xlfn.SWITCH($C$8,"PLAN 50/50",IF(B79=$C$16,POWER(W48+1,360)-1,""),"COMPRA MAESTRA",IF(B79=$C$16+1,POWER(W48+1,360)-1,""),"TRADICIONAL",IF(B79=$C$16,POWER(W48+1,360)-1,""),"CUOTA FLEX",IF(B79=$C$16,POWER(W48+1,360)-1,""))) -> 
B49: 10 | C49: 1 | D49: 2025-11-02 | E49: 2025-12-02 | F49: 30 | G49: 57264.15538 | H49: 56746.10795 | I49: =+IF(B49="","",_xlfn.SWITCH($C$8,"PLAN 50/50",IF(B49=$C$16,$G$40,0),"CUOTA FLEX",IF(B49=$C$16,$G$40,0),"COMPRA MAESTRA",IF(B49=$C$16+1,$C$24-SUM(J49:M49),C49*$C$27-SUM(J49:M49)),C49*$C$27-SUM(J49:M49))) -> 518.0474239 | J49: 916.51 | K49: 72.72547733 | L49: 320 | M49: 8.75 | N49: =IF(B49="","",_xlfn.SWITCH($C$8,"PLAN 50/50",IF(B49=$C$16,$H$40+SUM(J49:M49),SUM(I49:M49)),"COMPRA MAESTRA",IF(B49=$C$16+1,$C$24,SUM(I49:M49)),SUM(I49:M49))) -> 1836.032901 | T49: 2028-07-02 | U49: 1836.032901 | V49: =+XIRR($U$8:U49,$T$8:T49) -> 0.1347898781 | W49: 0.0003464915332 | X49: =+IF(B80="","",_xlfn.SWITCH($C$8,"PLAN 50/50",IF(B80=$C$16,POWER(W49+1,360)-1,""),"COMPRA MAESTRA",IF(B80=$C$16+1,POWER(W49+1,360)-1,""),"TRADICIONAL",IF(B80=$C$16,POWER(W49+1,360)-1,""),"CUOTA FLEX",IF(B80=$C$16,POWER(W49+1,360)-1,""))) -> 
B50: 11 | C50: 1 | D50: 2025-12-02 | E50: 2026-01-02 | F50: 31 | G50: 56746.10795 | H50: 56249.63261 | I50: =+IF(B50="","",_xlfn.SWITCH($C$8,"PLAN 50/50",IF(B50=$C$16,$G$40,0),"CUOTA FLEX",IF(B50=$C$16,$G$40,0),"COMPRA MAESTRA",IF(B50=$C$16+1,$C$24-SUM(J50:M50),C50*$C$27-SUM(J50:M50)),C50*$C$27-SUM(J50:M50))) -> 496.4753441 | J50: 938.74 | K50: 72.0675571 | L50: 320 | M50: 8.75 | N50: =IF(B50="","",_xlfn.SWITCH($C$8,"PLAN 50/50",IF(B50=$C$16,$H$40+SUM(J50:M50),SUM(I50:M50)),"COMPRA MAESTRA",IF(B50=$C$16+1,$C$24,SUM(I50:M50)),SUM(I50:M50))) -> 1836.032901 | T50: 2028-08-02 | U50: 1836.032901 | V50: =+XIRR($U$8:U50,$T$8:T50) -> 0.147557205 | W50: 0.0003771547037 | X50: =+IF(B81="","",_xlfn.SWITCH($C$8,"PLAN 50/50",IF(B81=$C$16,POWER(W50+1,360)-1,""),"COMPRA MAESTRA",IF(B81=$C$16+1,POWER(W50+1,360)-1,""),"TRADICIONAL",IF(B81=$C$16,POWER(W50+1,360)-1,""),"CUOTA FLEX",IF(B81=$C$16,POWER(W50+1,360)-1,""))) -> 
B51: 12 | C51: 1 | D51: 2026-01-02 | E51: 2026-02-02 | F51: 31 | G51: 56249.63261 | H51: 55744.30674 | I51: =+IF(B51="","",_xlfn.SWITCH($C$8,"PLAN 50/50",IF(B51=$C$16,$G$40,0),"CUOTA FLEX",IF(B51=$C$16,$G$40,0),"COMPRA MAESTRA",IF(B51=$C$16+1,$C$24-SUM(J51:M51),C51*$C$27-SUM(J51:M51)),C51*$C$27-SUM(J51:M51))) -> 505.3258678 | J51: 930.52 | K51: 71.43703341 | L51: 320 | M51: 8.75 | N51: =IF(B51="","",_xlfn.SWITCH($C$8,"PLAN 50/50",IF(B51=$C$16,$H$40+SUM(J51:M51),SUM(I51:M51)),"COMPRA MAESTRA",IF(B51=$C$16+1,$C$24,SUM(I51:M51)),SUM(I51:M51))) -> 1836.032901 | T51: 2028-09-02 | U51: 1836.032901 | V51: =+XIRR($U$8:U51,$T$8:T51) -> 0.159653455 | W51: 0.0004058939001 | X51: =+IF(B82="","",_xlfn.SWITCH($C$8,"PLAN 50/50",IF(B82=$C$16,POWER(W51+1,360)-1,""),"COMPRA MAESTRA",IF(B82=$C$16+1,POWER(W51+1,360)-1,""),"TRADICIONAL",IF(B82=$C$16,POWER(W51+1,360)-1,""),"CUOTA FLEX",IF(B82=$C$16,POWER(W51+1,360)-1,""))) -> 
B52: 13 | C52: 1 | D52: 2026-02-02 | E52: 2026-03-02 | F52: 28 | G52: 55744.30674 | H52: 55140.07911 | I52: =+IF(B52="","",_xlfn.SWITCH($C$8,"PLAN 50/50",IF(B52=$C$16,$G$40,0),"CUOTA FLEX",IF(B52=$C$16,$G$40,0),"COMPRA MAESTRA",IF(B52=$C$16+1,$C$24-SUM(J52:M52),C52*$C$27-SUM(J52:M52)),C52*$C$27-SUM(J52:M52))) -> 604.2276316 | J52: 832.26 | K52: 70.79526956 | L52: 320 | M52: 8.75 | N52: =IF(B52="","",_xlfn.SWITCH($C$8,"PLAN 50/50",IF(B52=$C$16,$H$40+SUM(J52:M52),SUM(I52:M52)),"COMPRA MAESTRA",IF(B52=$C$16+1,$C$24,SUM(I52:M52)),SUM(I52:M52))) -> 1836.032901 | T52: 2028-10-02 | U52: 1836.032901 | V52: =+XIRR($U$8:U52,$T$8:T52) -> 0.1711238801 | W52: 0.0004328713853 | X52: =+IF(B83="","",_xlfn.SWITCH($C$8,"PLAN 50/50",IF(B83=$C$16,POWER(W52+1,360)-1,""),"COMPRA MAESTRA",IF(B83=$C$16+1,POWER(W52+1,360)-1,""),"TRADICIONAL",IF(B83=$C$16,POWER(W52+1,360)-1,""),"CUOTA FLEX",IF(B83=$C$16,POWER(W52+1,360)-1,""))) -> 
B53: 14 | C53: 1 | D53: 2026-03-02 | E53: 2026-04-02 | F53: 31 | G53: 55140.07911 | H53: 54614.99411 | I53: =+IF(B53="","",_xlfn.SWITCH($C$8,"PLAN 50/50",IF(B53=$C$16,$G$40,0),"CUOTA FLEX",IF(B53=$C$16,$G$40,0),"COMPRA MAESTRA",IF(B53=$C$16+1,$C$24-SUM(J53:M53),C53*$C$27-SUM(J53:M53)),C53*$C$27-SUM(J53:M53))) -> 525.0850007 | J53: 912.17 | K53: 70.02790047 | L53: 320 | M53: 8.75 | N53: =IF(B53="","",_xlfn.SWITCH($C$8,"PLAN 50/50",IF(B53=$C$16,$H$40+SUM(J53:M53),SUM(I53:M53)),"COMPRA MAESTRA",IF(B53=$C$16+1,$C$24,SUM(I53:M53)),SUM(I53:M53))) -> 1836.032901 | T53: 2028-11-02 | U53: 1836.032901 | V53: =+XIRR($U$8:U53,$T$8:T53) -> 0.1820015609 | W53: 0.0004582124529 | X53: =+IF(B84="","",_xlfn.SWITCH($C$8,"PLAN 50/50",IF(B84=$C$16,POWER(W53+1,360)-1,""),"COMPRA MAESTRA",IF(B84=$C$16+1,POWER(W53+1,360)-1,""),"TRADICIONAL",IF(B84=$C$16,POWER(W53+1,360)-1,""),"CUOTA FLEX",IF(B84=$C$16,POWER(W53+1,360)-1,""))) -> 
B54: 15 | C54: 1 | D54: 2026-04-02 | E54: 2026-05-02 | F54: 30 | G54: 54614.99411 | H54: 54051.18225 | I54: =+IF(B54="","",_xlfn.SWITCH($C$8,"PLAN 50/50",IF(B54=$C$16,$G$40,0),"CUOTA FLEX",IF(B54=$C$16,$G$40,0),"COMPRA MAESTRA",IF(B54=$C$16+1,$C$24-SUM(J54:M54),C54*$C$27-SUM(J54:M54)),C54*$C$27-SUM(J54:M54))) -> 563.8118587 | J54: 874.11 | K54: 69.36104252 | L54: 320 | M54: 8.75 | N54: =IF(B54="","",_xlfn.SWITCH($C$8,"PLAN 50/50",IF(B54=$C$16,$H$40+SUM(J54:M54),SUM(I54:M54)),"COMPRA MAESTRA",IF(B54=$C$16+1,$C$24,SUM(I54:M54)),SUM(I54:M54))) -> 1836.032901 | T54: 2028-12-02 | U54: 1836.032901 | V54: =+XIRR($U$8:U54,$T$8:T54) -> 0.192326659 | W54: 0.0004820519685 | X54: =+IF(B85="","",_xlfn.SWITCH($C$8,"PLAN 50/50",IF(B85=$C$16,POWER(W54+1,360)-1,""),"COMPRA MAESTRA",IF(B85=$C$16+1,POWER(W54+1,360)-1,""),"TRADICIONAL",IF(B85=$C$16,POWER(W54+1,360)-1,""),"CUOTA FLEX",IF(B85=$C$16,POWER(W54+1,360)-1,""))) -> 
B55: 16 | C55: 1 | D55: 2026-05-02 | E55: 2026-06-02 | F55: 31 | G55: 54051.18225 | H55: 53506.70435 | I55: =+IF(B55="","",_xlfn.SWITCH($C$8,"PLAN 50/50",IF(B55=$C$16,$G$40,0),"CUOTA FLEX",IF(B55=$C$16,$G$40,0),"COMPRA MAESTRA",IF(B55=$C$16+1,$C$24-SUM(J55:M55),C55*$C$27-SUM(J55:M55)),C55*$C$27-SUM(J55:M55))) -> 544.4778997 | J55: 894.16 | K55: 68.64500146 | L55: 320 | M55: 8.75 | N55: =IF(B55="","",_xlfn.SWITCH($C$8,"PLAN 50/50",IF(B55=$C$16,$H$40+SUM(J55:M55),SUM(I55:M55)),"COMPRA MAESTRA",IF(B55=$C$16+1,$C$24,SUM(I55:M55)),SUM(I55:M55))) -> 1836.032901 | T55: 2029-01-02 | U55: 1836.032901 | V55: =+XIRR($U$8:U55,$T$8:T55) -> 0.2021273077 | W55: 0.0005044908941 | X55: =+IF(B86="","",_xlfn.SWITCH($C$8,"PLAN 50/50",IF(B86=$C$16,POWER(W55+1,360)-1,""),"COMPRA MAESTRA",IF(B86=$C$16+1,POWER(W55+1,360)-1,""),"TRADICIONAL",IF(B86=$C$16,POWER(W55+1,360)-1,""),"CUOTA FLEX",IF(B86=$C$16,POWER(W55+1,360)-1,""))) -> 
B56: 17 | C56: 1 | D56: 2026-06-02 | E56: 2026-07-02 | F56: 30 | G56: 53506.70435 | H56: 52923.74496 | I56: =+IF(B56="","",_xlfn.SWITCH($C$8,"PLAN 50/50",IF(B56=$C$16,$G$40,0),"CUOTA FLEX",IF(B56=$C$16,$G$40,0),"COMPRA MAESTRA",IF(B56=$C$16+1,$C$24-SUM(J56:M56),C56*$C$27-SUM(J56:M56)),C56*$C$27-SUM(J56:M56))) -> 582.9593867 | J56: 856.37 | K56: 67.95351453 | L56: 320 | M56: 8.75 | N56: =IF(B56="","",_xlfn.SWITCH($C$8,"PLAN 50/50",IF(B56=$C$16,$H$40+SUM(J56:M56),SUM(I56:M56)),"COMPRA MAESTRA",IF(B56=$C$16+1,$C$24,SUM(I56:M56)),SUM(I56:M56))) -> 1836.032901 | T56: 2029-02-02 | U56: 1836.032901 | V56: =+XIRR($U$8:U56,$T$8:T56) -> 0.2114343226 | W56: 0.0005256313784 | X56: =+IF(B87="","",_xlfn.SWITCH($C$8,"PLAN 50/50",IF(B87=$C$16,POWER(W56+1,360)-1,""),"COMPRA MAESTRA",IF(B87=$C$16+1,POWER(W56+1,360)-1,""),"TRADICIONAL",IF(B87=$C$16,POWER(W56+1,360)-1,""),"CUOTA FLEX",IF(B87=$C$16,POWER(W56+1,360)-1,""))) -> 
B57: 18 | C57: 1 | D57: 2026-07-02 | E57: 2026-08-02 | F57: 31 | G57: 52923.74496 | H57: 52359.17522 | I57: =+IF(B57="","",_xlfn.SWITCH($C$8,"PLAN 50/50",IF(B57=$C$16,$G$40,0),"CUOTA FLEX",IF(B57=$C$16,$G$40,0),"COMPRA MAESTRA",IF(B57=$C$16+1,$C$24-SUM(J57:M57),C57*$C$27-SUM(J57:M57)),C57*$C$27-SUM(J57:M57))) -> 564.5697451 | J57: 875.5 | K57: 67.21315611 | L57: 320 | M57: 8.75 | N57: =IF(B57="","",_xlfn.SWITCH($C$8,"PLAN 50/50",IF(B57=$C$16,$H$40+SUM(J57:M57),SUM(I57:M57)),"COMPRA MAESTRA",IF(B57=$C$16+1,$C$24,SUM(I57:M57)),SUM(I57:M57))) -> 1836.032901 | T57: 2029-03-02 | U57: 1836.032901 | V57: =+XIRR($U$8:U57,$T$8:T57) -> 0.2202907503 | W57: 0.0005455985114 | X57: =+IF(B88="","",_xlfn.SWITCH($C$8,"PLAN 50/50",IF(B88=$C$16,POWER(W57+1,360)-1,""),"COMPRA MAESTRA",IF(B88=$C$16+1,POWER(W57+1,360)-1,""),"TRADICIONAL",IF(B88=$C$16,POWER(W57+1,360)-1,""),"CUOTA FLEX",IF(B88=$C$16,POWER(W57+1,360)-1,""))) -> 
B58: 19 | C58: 1 | D58: 2026-08-02 | E58: 2026-09-02 | F58: 31 | G58: 52359.17522 | H58: 51784.54847 | I58: =+IF(B58="","",_xlfn.SWITCH($C$8,"PLAN 50/50",IF(B58=$C$16,$G$40,0),"CUOTA FLEX",IF(B58=$C$16,$G$40,0),"COMPRA MAESTRA",IF(B58=$C$16+1,$C$24-SUM(J58:M58),C58*$C$27-SUM(J58:M58)),C58*$C$27-SUM(J58:M58))) -> 574.6267487 | J58: 866.16 | K58: 66.49615253 | L58: 320 | M58: 8.75 | N58: =IF(B58="","",_xlfn.SWITCH($C$8,"PLAN 50/50",IF(B58=$C$16,$H$40+SUM(J58:M58),SUM(I58:M58)),"COMPRA MAESTRA",IF(B58=$C$16+1,$C$24,SUM(I58:M58)),SUM(I58:M58))) -> 1836.032901 | T58: 2029-04-02 | U58: 1836.032901 | V58: =+XIRR($U$8:U58,$T$8:T58) -> 0.2287090957 | W58: 0.0005644444514 | X58: =+IF(B89="","",_xlfn.SWITCH($C$8,"PLAN 50/50",IF(B89=$C$16,POWER(W58+1,360)-1,""),"COMPRA MAESTRA",IF(B89=$C$16+1,POWER(W58+1,360)-1,""),"TRADICIONAL",IF(B89=$C$16,POWER(W58+1,360)-1,""),"CUOTA FLEX",IF(B89=$C$16,POWER(W58+1,360)-1,""))) -> 
B59: 20 | C59: 1 | D59: 2026-09-02 | E59: 2026-10-02 | F59: 30 | G59: 51784.54847 | H59: 51171.83195 | I59: =+IF(B59="","",_xlfn.SWITCH($C$8,"PLAN 50/50",IF(B59=$C$16,$G$40,0),"CUOTA FLEX",IF(B59=$C$16,$G$40,0),"COMPRA MAESTRA",IF(B59=$C$16+1,$C$24-SUM(J59:M59),C59*$C$27-SUM(J59:M59)),C59*$C$27-SUM(J59:M59))) -> 612.7165246 | J59: 828.8 | K59: 65.76637656 | L59: 320 | M59: 8.75 | N59: =IF(B59="","",_xlfn.SWITCH($C$8,"PLAN 50/50",IF(B59=$C$16,$H$40+SUM(J59:M59),SUM(I59:M59)),"COMPRA MAESTRA",IF(B59=$C$16+1,$C$24,SUM(I59:M59)),SUM(I59:M59))) -> 1836.032901 | T59: 2029-05-02 | U59: 1836.032901 | V59: =+XIRR($U$8:U59,$T$8:T59) -> 0.2367190659 | W59: 0.0005822570031 | X59: =+IF(B90="","",_xlfn.SWITCH($C$8,"PLAN 50/50",IF(B90=$C$16,POWER(W59+1,360)-1,""),"COMPRA MAESTRA",IF(B90=$C$16+1,POWER(W59+1,360)-1,""),"TRADICIONAL",IF(B90=$C$16,POWER(W59+1,360)-1,""),"CUOTA FLEX",IF(B90=$C$16,POWER(W59+1,360)-1,""))) -> 
B60: 21 | C60: 1 | D60: 2026-10-02 | E60: 2026-11-02 | F60: 31 | G60: 51171.83195 | H60: 50576.05727 | I60: =+IF(B60="","",_xlfn.SWITCH($C$8,"PLAN 50/50",IF(B60=$C$16,$G$40,0),"CUOTA FLEX",IF(B60=$C$16,$G$40,0),"COMPRA MAESTRA",IF(B60=$C$16+1,$C$24-SUM(J60:M60),C60*$C$27-SUM(J60:M60)),C60*$C$27-SUM(J60:M60))) -> 595.7746746 | J60: 846.52 | K60: 64.98822657 | L60: 320 | M60: 8.75 | N60: =IF(B60="","",_xlfn.SWITCH($C$8,"PLAN 50/50",IF(B60=$C$16,$H$40+SUM(J60:M60),SUM(I60:M60)),"COMPRA MAESTRA",IF(B60=$C$16+1,$C$24,SUM(I60:M60)),SUM(I60:M60))) -> 1836.032901 | T60: 2029-06-02 | U60: 1836.032901 | V60: =+XIRR($U$8:U60,$T$8:T60) -> 0.244339484 | W60: 0.0005990967955 | X60: =+IF(B91="","",_xlfn.SWITCH($C$8,"PLAN 50/50",IF(B91=$C$16,POWER(W60+1,360)-1,""),"COMPRA MAESTRA",IF(B91=$C$16+1,POWER(W60+1,360)-1,""),"TRADICIONAL",IF(B91=$C$16,POWER(W60+1,360)-1,""),"CUOTA FLEX",IF(B91=$C$16,POWER(W60+1,360)-1,""))) -> 
B61: 22 | C61: 1 | D61: 2026-11-02 | E61: 2026-12-02 | F61: 30 | G61: 50576.05727 | H61: 49942.46596 | I61: =+IF(B61="","",_xlfn.SWITCH($C$8,"PLAN 50/50",IF(B61=$C$16,$G$40,0),"CUOTA FLEX",IF(B61=$C$16,$G$40,0),"COMPRA MAESTRA",IF(B61=$C$16+1,$C$24-SUM(J61:M61),C61*$C$27-SUM(J61:M61)),C61*$C$27-SUM(J61:M61))) -> 633.5913085 | J61: 809.46 | K61: 64.23159273 | L61: 320 | M61: 8.75 | N61: =IF(B61="","",_xlfn.SWITCH($C$8,"PLAN 50/50",IF(B61=$C$16,$H$40+SUM(J61:M61),SUM(I61:M61)),"COMPRA MAESTRA",IF(B61=$C$16+1,$C$24,SUM(I61:M61)),SUM(I61:M61))) -> 1836.032901 | T61: 2029-07-02 | U61: 1836.032901 | V61: =+XIRR($U$8:U61,$T$8:T61) -> 0.2515967309 | W61: 0.0006150387051 | X61: =+IF(B92="","",_xlfn.SWITCH($C$8,"PLAN 50/50",IF(B92=$C$16,POWER(W61+1,360)-1,""),"COMPRA MAESTRA",IF(B92=$C$16+1,POWER(W61+1,360)-1,""),"TRADICIONAL",IF(B92=$C$16,POWER(W61+1,360)-1,""),"CUOTA FLEX",IF(B92=$C$16,POWER(W61+1,360)-1,""))) -> 
B62: 23 | C62: 1 | D62: 2026-12-02 | E62: 2027-01-02 | F62: 31 | G62: 49942.46596 | H62: 49324.79999 | I62: =+IF(B62="","",_xlfn.SWITCH($C$8,"PLAN 50/50",IF(B62=$C$16,$G$40,0),"CUOTA FLEX",IF(B62=$C$16,$G$40,0),"COMPRA MAESTRA",IF(B62=$C$16+1,$C$24-SUM(J62:M62),C62*$C$27-SUM(J62:M62)),C62*$C$27-SUM(J62:M62))) -> 617.6659694 | J62: 826.19 | K62: 63.42693177 | L62: 320 | M62: 8.75 | N62: =IF(B62="","",_xlfn.SWITCH($C$8,"PLAN 50/50",IF(B62=$C$16,$H$40+SUM(J62:M62),SUM(I62:M62)),"COMPRA MAESTRA",IF(B62=$C$16+1,$C$24,SUM(I62:M62)),SUM(I62:M62))) -> 1836.032901 | T62: 2029-08-02 | U62: 1836.032901 | V62: =+XIRR($U$8:U62,$T$8:T62) -> 0.258506912 | W62: 0.0006301327731 | X62: =+IF(B93="","",_xlfn.SWITCH($C$8,"PLAN 50/50",IF(B93=$C$16,POWER(W62+1,360)-1,""),"COMPRA MAESTRA",IF(B93=$C$16+1,POWER(W62+1,360)-1,""),"TRADICIONAL",IF(B93=$C$16,POWER(W62+1,360)-1,""),"CUOTA FLEX",IF(B93=$C$16,POWER(W62+1,360)-1,""))) -> 
B63: 24 | C63: 1 | D63: 2027-01-02 | E63: 2027-02-02 | F63: 31 | G63: 49324.79999 | H63: 48696.12959 | I63: =+IF(B63="","",_xlfn.SWITCH($C$8,"PLAN 50/50",IF(B63=$C$16,$G$40,0),"CUOTA FLEX",IF(B63=$C$16,$G$40,0),"COMPRA MAESTRA",IF(B63=$C$16+1,$C$24-SUM(J63:M63),C63*$C$27-SUM(J63:M63)),C63*$C$27-SUM(J63:M63))) -> 628.6704052 | J63: 815.97 | K63: 62.64249599 | L63: 320 | M63: 8.75 | N63: =IF(B63="","",_xlfn.SWITCH($C$8,"PLAN 50/50",IF(B63=$C$16,$H$40+SUM(J63:M63),SUM(I63:M63)),"COMPRA MAESTRA",IF(B63=$C$16+1,$C$24,SUM(I63:M63)),SUM(I63:M63))) -> 1836.032901 | T63: 2029-09-02 | U63: 1836.032901 | V63: =+XIRR($U$8:U63,$T$8:T63) -> 0.2650893152 | W63: 0.0006444342012 | X63: =+IF(B94="","",_xlfn.SWITCH($C$8,"PLAN 50/50",IF(B94=$C$16,POWER(W63+1,360)-1,""),"COMPRA MAESTRA",IF(B94=$C$16+1,POWER(W63+1,360)-1,""),"TRADICIONAL",IF(B94=$C$16,POWER(W63+1,360)-1,""),"CUOTA FLEX",IF(B94=$C$16,POWER(W63+1,360)-1,""))) -> 
B64: 25 | C64: 1 | D64: 2027-02-02 | E64: 2027-03-02 | F64: 28 | G64: 48696.12959 | H64: 47977.72077 | I64: =+IF(B64="","",_xlfn.SWITCH($C$8,"PLAN 50/50",IF(B64=$C$16,$G$40,0),"CUOTA FLEX",IF(B64=$C$16,$G$40,0),"COMPRA MAESTRA",IF(B64=$C$16+1,$C$24-SUM(J64:M64),C64*$C$27-SUM(J64:M64)),C64*$C$27-SUM(J64:M64))) -> 718.4088166 | J64: 727.03 | K64: 61.84408458 | L64: 320 | M64: 8.75 | N64: =IF(B64="","",_xlfn.SWITCH($C$8,"PLAN 50/50",IF(B64=$C$16,$H$40+SUM(J64:M64),SUM(I64:M64)),"COMPRA MAESTRA",IF(B64=$C$16+1,$C$24,SUM(I64:M64)),SUM(I64:M64))) -> 1836.032901 | T64: 2029-10-02 | U64: 1836.032901 | V64: =+XIRR($U$8:U64,$T$8:T64) -> 0.2713660657 | W64: 0.0006580025934 | X64: =+IF(B95="","",_xlfn.SWITCH($C$8,"PLAN 50/50",IF(B95=$C$16,POWER(W64+1,360)-1,""),"COMPRA MAESTRA",IF(B95=$C$16+1,POWER(W64+1,360)-1,""),"TRADICIONAL",IF(B95=$C$16,POWER(W64+1,360)-1,""),"CUOTA FLEX",IF(B95=$C$16,POWER(W64+1,360)-1,""))) -> 
B65: 26 | C65: 1 | D65: 2027-03-02 | E65: 2027-04-02 | F65: 31 | G65: 47977.72077 | H65: 47325.04958 | I65: =+IF(B65="","",_xlfn.SWITCH($C$8,"PLAN 50/50",IF(B65=$C$16,$G$40,0),"CUOTA FLEX",IF(B65=$C$16,$G$40,0),"COMPRA MAESTRA",IF(B65=$C$16+1,$C$24-SUM(J65:M65),C65*$C$27-SUM(J65:M65)),C65*$C$27-SUM(J65:M65))) -> 652.6711958 | J65: 793.68 | K65: 60.93170538 | L65: 320 | M65: 8.75 | N65: =IF(B65="","",_xlfn.SWITCH($C$8,"PLAN 50/50",IF(B65=$C$16,$H$40+SUM(J65:M65),SUM(I65:M65)),"COMPRA MAESTRA",IF(B65=$C$16+1,$C$24,SUM(I65:M65)),SUM(I65:M65))) -> 1836.032901 | T65: 2029-11-02 | U65: 1836.032901 | V65: =+XIRR($U$8:U65,$T$8:T65) -> 0.2773499191 | W65: 0.000670875775 | X65: =+IF(B96="","",_xlfn.SWITCH($C$8,"PLAN 50/50",IF(B96=$C$16,POWER(W65+1,360)-1,""),"COMPRA MAESTRA",IF(B96=$C$16+1,POWER(W65+1,360)-1,""),"TRADICIONAL",IF(B96=$C$16,POWER(W65+1,360)-1,""),"CUOTA FLEX",IF(B96=$C$16,POWER(W65+1,360)-1,""))) -> 
B66: 27 | C66: 1 | D66: 2027-04-02 | E66: 2027-05-02 | F66: 30 | G66: 47325.04958 | H66: 46635.29949 | I66: =+IF(B66="","",_xlfn.SWITCH($C$8,"PLAN 50/50",IF(B66=$C$16,$G$40,0),"CUOTA FLEX",IF(B66=$C$16,$G$40,0),"COMPRA MAESTRA",IF(B66=$C$16+1,$C$24-SUM(J66:M66),C66*$C$27-SUM(J66:M66)),C66*$C$27-SUM(J66:M66))) -> 689.7500882 | J66: 757.43 | K66: 60.10281296 | L66: 320 | M66: 8.75 | N66: =IF(B66="","",_xlfn.SWITCH($C$8,"PLAN 50/50",IF(B66=$C$16,$H$40+SUM(J66:M66),SUM(I66:M66)),"COMPRA MAESTRA",IF(B66=$C$16+1,$C$24,SUM(I66:M66)),SUM(I66:M66))) -> 1836.032901 | T66: 2029-12-02 | U66: 1836.032901 | V66: =+XIRR($U$8:U66,$T$8:T66) -> 0.2830606043 | W66: 0.0006831053224 | X66: =+IF(B97="","",_xlfn.SWITCH($C$8,"PLAN 50/50",IF(B97=$C$16,POWER(W66+1,360)-1,""),"COMPRA MAESTRA",IF(B97=$C$16+1,POWER(W66+1,360)-1,""),"TRADICIONAL",IF(B97=$C$16,POWER(W66+1,360)-1,""),"CUOTA FLEX",IF(B97=$C$16,POWER(W66+1,360)-1,""))) -> 
B67: 28 | C67: 1 | D67: 2027-05-02 | E67: 2027-06-02 | F67: 31 | G67: 46635.29949 | H67: 45958.72342 | I67: =+IF(B67="","",_xlfn.SWITCH($C$8,"PLAN 50/50",IF(B67=$C$16,$G$40,0),"CUOTA FLEX",IF(B67=$C$16,$G$40,0),"COMPRA MAESTRA",IF(B67=$C$16+1,$C$24-SUM(J67:M67),C67*$C$27-SUM(J67:M67)),C67*$C$27-SUM(J67:M67))) -> 676.5760709 | J67: 771.48 | K67: 59.22683035 | L67: 320 | M67: 8.75 | N67: =IF(B67="","",_xlfn.SWITCH($C$8,"PLAN 50/50",IF(B67=$C$16,$H$40+SUM(J67:M67),SUM(I67:M67)),"COMPRA MAESTRA",IF(B67=$C$16+1,$C$24,SUM(I67:M67)),SUM(I67:M67))) -> 1836.032901 | T67: 2030-01-02 | U67: 1836.032901 | V67: =+XIRR($U$8:U67,$T$8:T67) -> 0.2885090292 | W67: 0.0006947227385 | X67: =+IF(B98="","",_xlfn.SWITCH($C$8,"PLAN 50/50",IF(B98=$C$16,POWER(W67+1,360)-1,""),"COMPRA MAESTRA",IF(B98=$C$16+1,POWER(W67+1,360)-1,""),"TRADICIONAL",IF(B98=$C$16,POWER(W67+1,360)-1,""),"CUOTA FLEX",IF(B98=$C$16,POWER(W67+1,360)-1,""))) -> 
B68: 29 | C68: 1 | D68: 2027-06-02 | E68: 2027-07-02 | F68: 30 | G68: 45958.72342 | H68: 45245.36809 | I68: =+IF(B68="","",_xlfn.SWITCH($C$8,"PLAN 50/50",IF(B68=$C$16,$G$40,0),"CUOTA FLEX",IF(B68=$C$16,$G$40,0),"COMPRA MAESTRA",IF(B68=$C$16+1,$C$24-SUM(J68:M68),C68*$C$27-SUM(J68:M68)),C68*$C$27-SUM(J68:M68))) -> 713.3553225 | J68: 735.56 | K68: 58.36757874 | L68: 320 | M68: 8.75 | N68: =IF(B68="","",_xlfn.SWITCH($C$8,"PLAN 50/50",IF(B68=$C$16,$H$40+SUM(J68:M68),SUM(I68:M68)),"COMPRA MAESTRA",IF(B68=$C$16+1,$C$24,SUM(I68:M68)),SUM(I68:M68))) -> 1836.032901 | T68: 2030-02-02 | U68: 1836.032901 | V68: =+XIRR($U$8:U68,$T$8:T68) -> 0.2937091887 | W68: 0.0007057651887 | X68: =+IF(B99="","",_xlfn.SWITCH($C$8,"PLAN 50/50",IF(B99=$C$16,POWER(W68+1,360)-1,""),"COMPRA MAESTRA",IF(B99=$C$16+1,POWER(W68+1,360)-1,""),"TRADICIONAL",IF(B99=$C$16,POWER(W68+1,360)-1,""),"CUOTA FLEX",IF(B99=$C$16,POWER(W68+1,360)-1,""))) -> 
B69: 30 | C69: 1 | D69: 2027-07-02 | E69: 2027-08-02 | F69: 31 | G69: 45245.36809 | H69: 44544.02681 | I69: =+IF(B69="","",_xlfn.SWITCH($C$8,"PLAN 50/50",IF(B69=$C$16,$G$40,0),"CUOTA FLEX",IF(B69=$C$16,$G$40,0),"COMPRA MAESTRA",IF(B69=$C$16+1,$C$24-SUM(J69:M69),C69*$C$27-SUM(J69:M69)),C69*$C$27-SUM(J69:M69))) -> 701.3412837 | J69: 748.48 | K69: 57.46161748 | L69: 320 | M69: 8.75 | N69: =IF(B69="","",_xlfn.SWITCH($C$8,"PLAN 50/50",IF(B69=$C$16,$H$40+SUM(J69:M69),SUM(I69:M69)),"COMPRA MAESTRA",IF(B69=$C$16+1,$C$24,SUM(I69:M69)),SUM(I69:M69))) -> 1836.032901 | T69: 2030-03-02 | U69: 1836.032901 | V69: =+XIRR($U$8:U69,$T$8:T69) -> 0.2986847818 | W69: 0.0007162894157 | X69: =+IF(B100="","",_xlfn.SWITCH($C$8,"PLAN 50/50",IF(B100=$C$16,POWER(W69+1,360)-1,""),"COMPRA MAESTRA",IF(B100=$C$16+1,POWER(W69+1,360)-1,""),"TRADICIONAL",IF(B100=$C$16,POWER(W69+1,360)-1,""),"CUOTA FLEX",IF(B100=$C$16,POWER(W69+1,360)-1,""))) -> 
B70: 31 | C70: 1 | D70: 2027-08-02 | E70: 2027-09-02 | F70: 31 | G70: 44544.02681 | H70: 43830.19482 | I70: =+IF(B70="","",_xlfn.SWITCH($C$8,"PLAN 50/50",IF(B70=$C$16,$G$40,0),"CUOTA FLEX",IF(B70=$C$16,$G$40,0),"COMPRA MAESTRA",IF(B70=$C$16+1,$C$24-SUM(J70:M70),C70*$C$27-SUM(J70:M70)),C70*$C$27-SUM(J70:M70))) -> 713.8319872 | J70: 736.88 | K70: 56.57091405 | L70: 320 | M70: 8.75 | N70: =IF(B70="","",_xlfn.SWITCH($C$8,"PLAN 50/50",IF(B70=$C$16,$H$40+SUM(J70:M70),SUM(I70:M70)),"COMPRA MAESTRA",IF(B70=$C$16+1,$C$24,SUM(I70:M70)),SUM(I70:M70))) -> 1836.032901 | T70: 2030-04-02 | U70: 1836.032901 | V70: =+XIRR($U$8:U70,$T$8:T70) -> 0.3034371674 | W70: 0.0007263040428 | X70: =+IF(B101="","",_xlfn.SWITCH($C$8,"PLAN 50/50",IF(B101=$C$16,POWER(W70+1,360)-1,""),"COMPRA MAESTRA",IF(B101=$C$16+1,POWER(W70+1,360)-1,""),"TRADICIONAL",IF(B101=$C$16,POWER(W70+1,360)-1,""),"CUOTA FLEX",IF(B101=$C$16,POWER(W70+1,360)-1,""))) -> 
B71: 32 | C71: 1 | D71: 2027-09-02 | E71: 2027-10-02 | F71: 30 | G71: 43830.19482 | H71: 43080.07627 | I71: =+IF(B71="","",_xlfn.SWITCH($C$8,"PLAN 50/50",IF(B71=$C$16,$G$40,0),"CUOTA FLEX",IF(B71=$C$16,$G$40,0),"COMPRA MAESTRA",IF(B71=$C$16+1,$C$24-SUM(J71:M71),C71*$C$27-SUM(J71:M71)),C71*$C$27-SUM(J71:M71))) -> 750.1185538 | J71: 701.5 | K71: 55.66434743 | L71: 320 | M71: 8.75 | N71: =IF(B71="","",_xlfn.SWITCH($C$8,"PLAN 50/50",IF(B71=$C$16,$H$40+SUM(J71:M71),SUM(I71:M71)),"COMPRA MAESTRA",IF(B71=$C$16+1,$C$24,SUM(I71:M71)),SUM(I71:M71))) -> 1836.032901 | T71: 2030-05-02 | U71: 1836.032901 | V71: =+XIRR($U$8:U71,$T$8:T71) -> 0.3079812467 | W71: 0.0007358457128 | X71: =+IF(B102="","",_xlfn.SWITCH($C$8,"PLAN 50/50",IF(B102=$C$16,POWER(W71+1,360)-1,""),"COMPRA MAESTRA",IF(B102=$C$16+1,POWER(W71+1,360)-1,""),"TRADICIONAL",IF(B102=$C$16,POWER(W71+1,360)-1,""),"CUOTA FLEX",IF(B102=$C$16,POWER(W71+1,360)-1,""))) -> 
B72: =+IFERROR(IF($C$8="COMPRA MAESTRA",IF(B71<=$C$16,B71+1,""),IF(B71+1<=$C$16,B71+1,"")),"") -> 33 | C72: 1 | D72: 2027-10-02 | E72: 2027-11-02 | F72: 31 | G72: 43080.07627 | H72: 42340.16507 | I72: =+IF(B72="","",_xlfn.SWITCH($C$8,"PLAN 50/50",IF(B72=$C$16,$G$40,0),"CUOTA FLEX",IF(B72=$C$16,$G$40,0),"COMPRA MAESTRA",IF(B72=$C$16+1,$C$24-SUM(J72:M72),C72*$C$27-SUM(J72:M72)),C72*$C$27-SUM(J72:M72))) -> 739.9112043 | J72: 712.66 | K72: 54.71169686 | L72: =+IF(B72="","",$C$10*$C$22/12) -> 320 | M72: 8.75 | N72: =IF(B72="","",_xlfn.SWITCH($C$8,"PLAN 50/50",IF(B72=$C$16,$H$40+SUM(J72:M72),SUM(I72:M72)),"COMPRA MAESTRA",IF(B72=$C$16+1,$C$24,SUM(I72:M72)),SUM(I72:M72))) -> 1836.032901 | T72: 2030-06-02 | U72: 1836.032901 | V72: =+XIRR($U$8:U72,$T$8:T72) -> 0.312324506 | W72: 0.0007449348519 | X72: =+IF(B103="","",_xlfn.SWITCH($C$8,"PLAN 50/50",IF(B103=$C$16,POWER(W72+1,360)-1,""),"COMPRA MAESTRA",IF(B103=$C$16+1,POWER(W72+1,360)-1,""),"TRADICIONAL",IF(B103=$C$16,POWER(W72+1,360)-1,""),"CUOTA FLEX",IF(B103=$C$16,POWER(W72+1,360)-1,""))) -> 
B73: 34 | C73: 1 | D73: 2027-11-02 | E73: 2027-12-02 | F73: 30 | G73: 42340.16507 | H73: 41564.30417 | I73: =+IF(B73="","",_xlfn.SWITCH($C$8,"PLAN 50/50",IF(B73=$C$16,$G$40,0),"CUOTA FLEX",IF(B73=$C$16,$G$40,0),"COMPRA MAESTRA",IF(B73=$C$16+1,$C$24-SUM(J73:M73),C73*$C$27-SUM(J73:M73)),C73*$C$27-SUM(J73:M73))) -> 775.8608916 | J73: 677.65 | K73: 53.77200963 | L73: 320 | M73: 8.75 | N73: =IF(B73="","",_xlfn.SWITCH($C$8,"PLAN 50/50",IF(B73=$C$16,$H$40+SUM(J73:M73),SUM(I73:M73)),"COMPRA MAESTRA",IF(B73=$C$16+1,$C$24,SUM(I73:M73)),SUM(I73:M73))) -> 1836.032901 | T73: 2030-07-02 | U73: 1836.032901 | V73: =+XIRR($U$8:U73,$T$8:T73) -> 0.3164803207 | W73: 0.0007536036842 | X73: =+IF(B104="","",_xlfn.SWITCH($C$8,"PLAN 50/50",IF(B104=$C$16,POWER(W73+1,360)-1,""),"COMPRA MAESTRA",IF(B104=$C$16+1,POWER(W73+1,360)-1,""),"TRADICIONAL",IF(B104=$C$16,POWER(W73+1,360)-1,""),"CUOTA FLEX",IF(B104=$C$16,POWER(W73+1,360)-1,""))) -> 
B74: 35 | C74: 1 | D74: 2027-12-02 | E74: 2028-01-02 | F74: 31 | G74: 41564.30417 | H74: 40797.39794 | I74: =+IF(B74="","",_xlfn.SWITCH($C$8,"PLAN 50/50",IF(B74=$C$16,$G$40,0),"CUOTA FLEX",IF(B74=$C$16,$G$40,0),"COMPRA MAESTRA",IF(B74=$C$16+1,$C$24-SUM(J74:M74),C74*$C$27-SUM(J74:M74)),C74*$C$27-SUM(J74:M74))) -> 766.9062349 | J74: 687.59 | K74: 52.7866663 | L74: 320 | M74: 8.75 | N74: =IF(B74="","",_xlfn.SWITCH($C$8,"PLAN 50/50",IF(B74=$C$16,$H$40+SUM(J74:M74),SUM(I74:M74)),"COMPRA MAESTRA",IF(B74=$C$16+1,$C$24,SUM(I74:M74)),SUM(I74:M74))) -> 1836.032901 | T74: =+E105 -> 2030-08-02 | U74: =+N105 -> 1836.032901 | V74: =+XIRR($U$8:U74,$T$8:T74) -> 0.3204551399 | W74: 0.0007618694728 | X74: =+IF(B105="","",_xlfn.SWITCH($C$8,"PLAN 50/50",IF(B105=$C$16,POWER(W74+1,360)-1,""),"COMPRA MAESTRA",IF(B105=$C$16+1,POWER(W74+1,360)-1,""),"TRADICIONAL",IF(B105=$C$16,POWER(W74+1,360)-1,""),"CUOTA FLEX",IF(B105=$C$16,POWER(W74+1,360)-1,""))) -> 
B75: 36 | C75: 1 | D75: 2028-01-02 | E75: 2028-02-02 | F75: 31 | G75: 40797.39794 | H75: 40016.82773 | I75: =+IF(B75="","",_xlfn.SWITCH($C$8,"PLAN 50/50",IF(B75=$C$16,$G$40,0),"CUOTA FLEX",IF(B75=$C$16,$G$40,0),"COMPRA MAESTRA",IF(B75=$C$16+1,$C$24-SUM(J75:M75),C75*$C$27-SUM(J75:M75)),C75*$C$27-SUM(J75:M75))) -> 780.5702058 | J75: 674.9 | K75: 51.81269538 | L75: 320 | M75: 8.75 | N75: =IF(B75="","",_xlfn.SWITCH($C$8,"PLAN 50/50",IF(B75=$C$16,$H$40+SUM(J75:M75),SUM(I75:M75)),"COMPRA MAESTRA",IF(B75=$C$16+1,$C$24,SUM(I75:M75)),SUM(I75:M75))) -> 1836.032901 | T75: 2030-09-02 | U75: 1836.032901 | V75: =+XIRR($U$8:U75,$T$8:T75) -> 0.3242580593 | W75: 0.000769754595 | X75: =+IF(B106="","",_xlfn.SWITCH($C$8,"PLAN 50/50",IF(B106=$C$16,POWER(W75+1,360)-1,""),"COMPRA MAESTRA",IF(B106=$C$16+1,POWER(W75+1,360)-1,""),"TRADICIONAL",IF(B106=$C$16,POWER(W75+1,360)-1,""),"CUOTA FLEX",IF(B106=$C$16,POWER(W75+1,360)-1,""))) -> 
B76: 37 | C76: 1 | D76: 2028-02-02 | E76: 2028-03-02 | F76: 29 | G76: 40016.82773 | H76: =+IF(B76="","",G76-I76) -> 39179.3162 | I76: =+IF(B76="","",_xlfn.SWITCH($C$8,"PLAN 50/50",IF(B76=$C$16,$G$40,0),"CUOTA FLEX",IF(B76=$C$16,$G$40,0),"COMPRA MAESTRA",IF(B76=$C$16+1,$C$24-SUM(J76:M76),C76*$C$27-SUM(J76:M76)),C76*$C$27-SUM(J76:M76))) -> 837.51153 | J76: 618.95 | K76: 50.82137122 | L76: 320 | M76: 8.75 | N76: =IF(B76="","",_xlfn.SWITCH($C$8,"PLAN 50/50",IF(B76=$C$16,$H$40+SUM(J76:M76),SUM(I76:M76)),"COMPRA MAESTRA",IF(B76=$C$16+1,$C$24,SUM(I76:M76)),SUM(I76:M76))) -> 1836.032901 | T76: 2030-10-02 | U76: 1836.032901 | V76: =+XIRR($U$8:U76,$T$8:T76) -> 0.3279004753 | W76: 0.0007772857792 | X76: =+IF(B107="","",_xlfn.SWITCH($C$8,"PLAN 50/50",IF(B107=$C$16,POWER(W76+1,360)-1,""),"COMPRA MAESTRA",IF(B107=$C$16+1,POWER(W76+1,360)-1,""),"TRADICIONAL",IF(B107=$C$16,POWER(W76+1,360)-1,""),"CUOTA FLEX",IF(B107=$C$16,POWER(W76+1,360)-1,""))) -> 
B77: 38 | C77: 1 | D77: 2028-03-02 | E77: 2028-04-02 | F77: 31 | G77: 39179.3162 | H77: =+IF(B77="","",G77-I77) -> 38369.92103 | I77: =+IF(B77="","",_xlfn.SWITCH($C$8,"PLAN 50/50",IF(B77=$C$16,$G$40,0),"CUOTA FLEX",IF(B77=$C$16,$G$40,0),"COMPRA MAESTRA",IF(B77=$C$16+1,$C$24-SUM(J77:M77),C77*$C$27-SUM(J77:M77)),C77*$C$27-SUM(J77:M77))) -> 809.3951696 | J77: 648.13 | K77: 49.75773158 | L77: 320 | M77: 8.75 | N77: =IF(B77="","",_xlfn.SWITCH($C$8,"PLAN 50/50",IF(B77=$C$16,$H$40+SUM(J77:M77),SUM(I77:M77)),"COMPRA MAESTRA",IF(B77=$C$16+1,$C$24,SUM(I77:M77)),SUM(I77:M77))) -> 1836.032901 | T77: 2030-11-02 | U77: 1836.032901 | V77: =+XIRR($U$8:U77,$T$8:T77) -> 0.3313875496 | W77: 0.0007844764965 | X77: =+IF(B108="","",_xlfn.SWITCH($C$8,"PLAN 50/50",IF(B108=$C$16,POWER(W77+1,360)-1,""),"COMPRA MAESTRA",IF(B108=$C$16+1,POWER(W77+1,360)-1,""),"TRADICIONAL",IF(B108=$C$16,POWER(W77+1,360)-1,""),"CUOTA FLEX",IF(B108=$C$16,POWER(W77+1,360)-1,""))) -> 
B78: 39 | C78: 1 | D78: 2028-04-02 | E78: 2028-05-02 | F78: 30 | G78: 38369.92103 | H78: 37525.47793 | I78: =+IF(B78="","",_xlfn.SWITCH($C$8,"PLAN 50/50",IF(B78=$C$16,$G$40,0),"CUOTA FLEX",IF(B78=$C$16,$G$40,0),"COMPRA MAESTRA",IF(B78=$C$16+1,$C$24-SUM(J78:M78),C78*$C$27-SUM(J78:M78)),C78*$C$27-SUM(J78:M78))) -> 844.4431015 | J78: 614.11 | K78: 48.72979971 | L78: 320 | M78: 8.75 | N78: =IF(B78="","",_xlfn.SWITCH($C$8,"PLAN 50/50",IF(B78=$C$16,$H$40+SUM(J78:M78),SUM(I78:M78)),"COMPRA MAESTRA",IF(B78=$C$16+1,$C$24,SUM(I78:M78)),SUM(I78:M78))) -> 1836.032901 | T78: 2030-12-02 | U78: 1836.032901 | V78: =+XIRR($U$8:U78,$T$8:T78) -> 0.3347295582 | W78: 0.0007913504684 | X78: =+IF(B109="","",_xlfn.SWITCH($C$8,"PLAN 50/50",IF(B109=$C$16,POWER(W78+1,360)-1,""),"COMPRA MAESTRA",IF(B109=$C$16+1,POWER(W78+1,360)-1,""),"TRADICIONAL",IF(B109=$C$16,POWER(W78+1,360)-1,""),"CUOTA FLEX",IF(B109=$C$16,POWER(W78+1,360)-1,""))) -> 
B79: 40 | C79: 1 | D79: 2028-05-02 | E79: 2028-06-02 | F79: 31 | G79: 37525.47793 | H79: 36686.62239 | I79: =+IF(B79="","",_xlfn.SWITCH($C$8,"PLAN 50/50",IF(B79=$C$16,$G$40,0),"CUOTA FLEX",IF(B79=$C$16,$G$40,0),"COMPRA MAESTRA",IF(B79=$C$16+1,$C$24-SUM(J79:M79),C79*$C$27-SUM(J79:M79)),C79*$C$27-SUM(J79:M79))) -> 838.8555442 | J79: 620.77 | K79: 47.65735697 | L79: 320 | M79: 8.75 | N79: =IF(B79="","",_xlfn.SWITCH($C$8,"PLAN 50/50",IF(B79=$C$16,$H$40+SUM(J79:M79),SUM(I79:M79)),"COMPRA MAESTRA",IF(B79=$C$16+1,$C$24,SUM(I79:M79)),SUM(I79:M79))) -> 1836.032901 | T79: 2031-01-02 | U79: 1836.032901 | V79: =+XIRR($U$8:U79,$T$8:T79) -> 0.3379309475 | W79: 0.0007979191317 | X79: =+IF(B110="","",_xlfn.SWITCH($C$8,"PLAN 50/50",IF(B110=$C$16,POWER(W79+1,360)-1,""),"COMPRA MAESTRA",IF(B110=$C$16+1,POWER(W79+1,360)-1,""),"TRADICIONAL",IF(B110=$C$16,POWER(W79+1,360)-1,""),"CUOTA FLEX",IF(B110=$C$16,POWER(W79+1,360)-1,""))) -> 
B80: 41 | C80: 1 | D80: 2028-06-02 | E80: 2028-07-02 | F80: 30 | G80: 36686.62239 | H80: 35813.0915 | I80: =+IF(B80="","",_xlfn.SWITCH($C$8,"PLAN 50/50",IF(B80=$C$16,$G$40,0),"CUOTA FLEX",IF(B80=$C$16,$G$40,0),"COMPRA MAESTRA",IF(B80=$C$16+1,$C$24-SUM(J80:M80),C80*$C$27-SUM(J80:M80)),C80*$C$27-SUM(J80:M80))) -> 873.5308908 | J80: 587.16 | K80: 46.59201043 | L80: 320 | M80: 8.75 | N80: =IF(B80="","",_xlfn.SWITCH($C$8,"PLAN 50/50",IF(B80=$C$16,$H$40+SUM(J80:M80),SUM(I80:M80)),"COMPRA MAESTRA",IF(B80=$C$16+1,$C$24,SUM(I80:M80)),SUM(I80:M80))) -> 1836.032901 | T80: 2031-02-02 | U80: 1836.032901 | V80: =+XIRR($U$8:U80,$T$8:T80) -> 0.3409985483 | W80: 0.0008041985964 | X80: =+IF(B111="","",_xlfn.SWITCH($C$8,"PLAN 50/50",IF(B111=$C$16,POWER(W80+1,360)-1,""),"COMPRA MAESTRA",IF(B111=$C$16+1,POWER(W80+1,360)-1,""),"TRADICIONAL",IF(B111=$C$16,POWER(W80+1,360)-1,""),"CUOTA FLEX",IF(B111=$C$16,POWER(W80+1,360)-1,""))) -> 0.3356193872
B81: 42 | C81: 1 | D81: 2028-07-02 | E81: 2028-08-02 | F81: 31 | G81: 35813.0915 | H81: 34943.74122 | I81: =+IF(B81="","",_xlfn.SWITCH($C$8,"PLAN 50/50",IF(B81=$C$16,$G$40,0),"CUOTA FLEX",IF(B81=$C$16,$G$40,0),"COMPRA MAESTRA",IF(B81=$C$16+1,$C$24-SUM(J81:M81),C81*$C$27-SUM(J81:M81)),C81*$C$27-SUM(J81:M81))) -> 869.350275 | J81: 592.45 | K81: 45.4826262 | L81: 320 | M81: 8.75 | N81: =IF(B81="","",_xlfn.SWITCH($C$8,"PLAN 50/50",IF(B81=$C$16,$H$40+SUM(J81:M81),SUM(I81:M81)),"COMPRA MAESTRA",IF(B81=$C$16+1,$C$24,SUM(I81:M81)),SUM(I81:M81))) -> 1836.032901
B82: 43 | C82: 1 | D82: 2028-08-02 | E82: 2028-09-02 | F82: 31 | G82: 34943.74122 | H82: 34058.90687 | I82: =+IF(B82="","",_xlfn.SWITCH($C$8,"PLAN 50/50",IF(B82=$C$16,$G$40,0),"CUOTA FLEX",IF(B82=$C$16,$G$40,0),"COMPRA MAESTRA",IF(B82=$C$16+1,$C$24-SUM(J82:M82),C82*$C$27-SUM(J82:M82)),C82*$C$27-SUM(J82:M82))) -> 884.8343499 | J82: 578.07 | K82: 44.37855135 | L82: 320 | M82: 8.75 | N82: =IF(B82="","",_xlfn.SWITCH($C$8,"PLAN 50/50",IF(B82=$C$16,$H$40+SUM(J82:M82),SUM(I82:M82)),"COMPRA MAESTRA",IF(B82=$C$16+1,$C$24,SUM(I82:M82)),SUM(I82:M82))) -> 1836.032901
B83: 44 | C83: 1 | D83: 2028-09-02 | E83: 2028-10-02 | F83: 30 | G83: 34058.90687 | H83: 33139.98878 | I83: =+IF(B83="","",_xlfn.SWITCH($C$8,"PLAN 50/50",IF(B83=$C$16,$G$40,0),"CUOTA FLEX",IF(B83=$C$16,$G$40,0),"COMPRA MAESTRA",IF(B83=$C$16+1,$C$24-SUM(J83:M83),C83*$C$27-SUM(J83:M83)),C83*$C$27-SUM(J83:M83))) -> 918.9180895 | J83: 545.11 | K83: 43.25481173 | L83: 320 | M83: 8.75 | N83: =IF(B83="","",_xlfn.SWITCH($C$8,"PLAN 50/50",IF(B83=$C$16,$H$40+SUM(J83:M83),SUM(I83:M83)),"COMPRA MAESTRA",IF(B83=$C$16+1,$C$24,SUM(I83:M83)),SUM(I83:M83))) -> 1836.032901
B84: 45 | C84: 1 | D84: 2028-10-02 | E84: 2028-11-02 | F84: 31 | G84: 33139.98878 | H84: 32223.02367 | I84: =+IF(B84="","",_xlfn.SWITCH($C$8,"PLAN 50/50",IF(B84=$C$16,$G$40,0),"CUOTA FLEX",IF(B84=$C$16,$G$40,0),"COMPRA MAESTRA",IF(B84=$C$16+1,$C$24-SUM(J84:M84),C84*$C$27-SUM(J84:M84)),C84*$C$27-SUM(J84:M84))) -> 916.9651155 | J84: 548.23 | K84: 42.08778575 | L84: 320 | M84: 8.75 | N84: =IF(B84="","",_xlfn.SWITCH($C$8,"PLAN 50/50",IF(B84=$C$16,$H$40+SUM(J84:M84),SUM(I84:M84)),"COMPRA MAESTRA",IF(B84=$C$16+1,$C$24,SUM(I84:M84)),SUM(I84:M84))) -> 1836.032901
B85: 46 | C85: 1 | D85: 2028-11-02 | E85: 2028-12-02 | F85: 30 | G85: 32223.02367 | H85: 31272.39401 | I85: =+IF(B85="","",_xlfn.SWITCH($C$8,"PLAN 50/50",IF(B85=$C$16,$G$40,0),"CUOTA FLEX",IF(B85=$C$16,$G$40,0),"COMPRA MAESTRA",IF(B85=$C$16+1,$C$24-SUM(J85:M85),C85*$C$27-SUM(J85:M85)),C85*$C$27-SUM(J85:M85))) -> 950.6296611 | J85: 515.73 | K85: 40.92324006 | L85: 320 | M85: 8.75 | N85: =IF(B85="","",_xlfn.SWITCH($C$8,"PLAN 50/50",IF(B85=$C$16,$H$40+SUM(J85:M85),SUM(I85:M85)),"COMPRA MAESTRA",IF(B85=$C$16+1,$C$24,SUM(I85:M85)),SUM(I85:M85))) -> 1836.032901
B86: 47 | C86: 1 | D86: 2028-12-02 | E86: 2029-01-02 | F86: 31 | G86: 31272.39401 | H86: 30322.15705 | I86: =+IF(B86="","",_xlfn.SWITCH($C$8,"PLAN 50/50",IF(B86=$C$16,$G$40,0),"CUOTA FLEX",IF(B86=$C$16,$G$40,0),"COMPRA MAESTRA",IF(B86=$C$16+1,$C$24-SUM(J86:M86),C86*$C$27-SUM(J86:M86)),C86*$C$27-SUM(J86:M86))) -> 950.2369608 | J86: 517.33 | K86: 39.71594039 | L86: 320 | M86: 8.75 | N86: =IF(B86="","",_xlfn.SWITCH($C$8,"PLAN 50/50",IF(B86=$C$16,$H$40+SUM(J86:M86),SUM(I86:M86)),"COMPRA MAESTRA",IF(B86=$C$16+1,$C$24,SUM(I86:M86)),SUM(I86:M86))) -> 1836.032901
B87: 48 | C87: 1 | D87: 2029-01-02 | E87: 2029-02-02 | F87: 31 | G87: 30322.15705 | H87: 29354.99328 | I87: =+IF(B87="","",_xlfn.SWITCH($C$8,"PLAN 50/50",IF(B87=$C$16,$G$40,0),"CUOTA FLEX",IF(B87=$C$16,$G$40,0),"COMPRA MAESTRA",IF(B87=$C$16+1,$C$24-SUM(J87:M87),C87*$C$27-SUM(J87:M87)),C87*$C$27-SUM(J87:M87))) -> 967.1637618 | J87: 501.61 | K87: 38.50913945 | L87: 320 | M87: 8.75 | N87: =IF(B87="","",_xlfn.SWITCH($C$8,"PLAN 50/50",IF(B87=$C$16,$H$40+SUM(J87:M87),SUM(I87:M87)),"COMPRA MAESTRA",IF(B87=$C$16+1,$C$24,SUM(I87:M87)),SUM(I87:M87))) -> 1836.032901
B88: 49 | C88: 1 | D88: 2029-02-02 | E88: 2029-03-02 | F88: 28 | G88: 29354.99328 | H88: 28323.26122 | I88: =+IF(B88="","",_xlfn.SWITCH($C$8,"PLAN 50/50",IF(B88=$C$16,$G$40,0),"CUOTA FLEX",IF(B88=$C$16,$G$40,0),"COMPRA MAESTRA",IF(B88=$C$16+1,$C$24-SUM(J88:M88),C88*$C$27-SUM(J88:M88)),C88*$C$27-SUM(J88:M88))) -> 1031.73206 | J88: 438.27 | K88: 37.28084147 | L88: 320 | M88: 8.75 | N88: =IF(B88="","",_xlfn.SWITCH($C$8,"PLAN 50/50",IF(B88=$C$16,$H$40+SUM(J88:M88),SUM(I88:M88)),"COMPRA MAESTRA",IF(B88=$C$16+1,$C$24,SUM(I88:M88)),SUM(I88:M88))) -> 1836.032901
B89: 50 | C89: 1 | D89: 2029-03-02 | E89: 2029-04-02 | F89: 31 | G89: 28323.26122 | H89: 27320.48886 | I89: =+IF(B89="","",_xlfn.SWITCH($C$8,"PLAN 50/50",IF(B89=$C$16,$G$40,0),"CUOTA FLEX",IF(B89=$C$16,$G$40,0),"COMPRA MAESTRA",IF(B89=$C$16+1,$C$24-SUM(J89:M89),C89*$C$27-SUM(J89:M89)),C89*$C$27-SUM(J89:M89))) -> 1002.772359 | J89: 468.54 | K89: 35.97054175 | L89: 320 | M89: 8.75 | N89: =IF(B89="","",_xlfn.SWITCH($C$8,"PLAN 50/50",IF(B89=$C$16,$H$40+SUM(J89:M89),SUM(I89:M89)),"COMPRA MAESTRA",IF(B89=$C$16+1,$C$24,SUM(I89:M89)),SUM(I89:M89))) -> 1836.032901
B90: 51 | C90: 1 | D90: 2029-04-02 | E90: 2029-05-02 | F90: 30 | G90: 27320.48886 | H90: 26285.16298 | I90: =+IF(B90="","",_xlfn.SWITCH($C$8,"PLAN 50/50",IF(B90=$C$16,$G$40,0),"CUOTA FLEX",IF(B90=$C$16,$G$40,0),"COMPRA MAESTRA",IF(B90=$C$16+1,$C$24-SUM(J90:M90),C90*$C$27-SUM(J90:M90)),C90*$C$27-SUM(J90:M90))) -> 1035.32588 | J90: 437.26 | K90: 34.69702086 | L90: 320 | M90: 8.75 | N90: =IF(B90="","",_xlfn.SWITCH($C$8,"PLAN 50/50",IF(B90=$C$16,$H$40+SUM(J90:M90),SUM(I90:M90)),"COMPRA MAESTRA",IF(B90=$C$16+1,$C$24,SUM(I90:M90)),SUM(I90:M90))) -> 1836.032901
B91: 52 | C91: 1 | D91: 2029-05-02 | E91: 2029-06-02 | F91: 31 | G91: 26285.16298 | H91: 25246.09224 | I91: =+IF(B91="","",_xlfn.SWITCH($C$8,"PLAN 50/50",IF(B91=$C$16,$G$40,0),"CUOTA FLEX",IF(B91=$C$16,$G$40,0),"COMPRA MAESTRA",IF(B91=$C$16+1,$C$24-SUM(J91:M91),C91*$C$27-SUM(J91:M91)),C91*$C$27-SUM(J91:M91))) -> 1039.070744 | J91: 434.83 | K91: 33.38215699 | L91: 320 | M91: 8.75 | N91: =IF(B91="","",_xlfn.SWITCH($C$8,"PLAN 50/50",IF(B91=$C$16,$H$40+SUM(J91:M91),SUM(I91:M91)),"COMPRA MAESTRA",IF(B91=$C$16+1,$C$24,SUM(I91:M91)),SUM(I91:M91))) -> 1836.032901
B92: 53 | C92: 1 | D92: 2029-06-02 | E92: 2029-07-02 | F92: 30 | G92: 25246.09224 | H92: 24174.93188 | I92: =+IF(B92="","",_xlfn.SWITCH($C$8,"PLAN 50/50",IF(B92=$C$16,$G$40,0),"CUOTA FLEX",IF(B92=$C$16,$G$40,0),"COMPRA MAESTRA",IF(B92=$C$16+1,$C$24-SUM(J92:M92),C92*$C$27-SUM(J92:M92)),C92*$C$27-SUM(J92:M92))) -> 1071.160364 | J92: 404.06 | K92: 32.06253714 | L92: 320 | M92: 8.75 | N92: =IF(B92="","",_xlfn.SWITCH($C$8,"PLAN 50/50",IF(B92=$C$16,$H$40+SUM(J92:M92),SUM(I92:M92)),"COMPRA MAESTRA",IF(B92=$C$16+1,$C$24,SUM(I92:M92)),SUM(I92:M92))) -> 1836.032901
B93: 54 | C93: 1 | D93: 2029-07-02 | E93: 2029-08-02 | F93: 31 | G93: 24174.93188 | H93: 23098.27114 | I93: =+IF(B93="","",_xlfn.SWITCH($C$8,"PLAN 50/50",IF(B93=$C$16,$G$40,0),"CUOTA FLEX",IF(B93=$C$16,$G$40,0),"COMPRA MAESTRA",IF(B93=$C$16+1,$C$24-SUM(J93:M93),C93*$C$27-SUM(J93:M93)),C93*$C$27-SUM(J93:M93))) -> 1076.660738 | J93: 399.92 | K93: 30.70216348 | L93: 320 | M93: 8.75 | N93: =IF(B93="","",_xlfn.SWITCH($C$8,"PLAN 50/50",IF(B93=$C$16,$H$40+SUM(J93:M93),SUM(I93:M93)),"COMPRA MAESTRA",IF(B93=$C$16+1,$C$24,SUM(I93:M93)),SUM(I93:M93))) -> 1836.032901
B94: 55 | C94: 1 | D94: 2029-08-02 | E94: 2029-09-02 | F94: 31 | G94: 23098.27114 | H94: 22002.43304 | I94: =+IF(B94="","",_xlfn.SWITCH($C$8,"PLAN 50/50",IF(B94=$C$16,$G$40,0),"CUOTA FLEX",IF(B94=$C$16,$G$40,0),"COMPRA MAESTRA",IF(B94=$C$16+1,$C$24-SUM(J94:M94),C94*$C$27-SUM(J94:M94)),C94*$C$27-SUM(J94:M94))) -> 1095.838097 | J94: 382.11 | K94: 29.33480435 | L94: 320 | M94: 8.75 | N94: =IF(B94="","",_xlfn.SWITCH($C$8,"PLAN 50/50",IF(B94=$C$16,$H$40+SUM(J94:M94),SUM(I94:M94)),"COMPRA MAESTRA",IF(B94=$C$16+1,$C$24,SUM(I94:M94)),SUM(I94:M94))) -> 1836.032901
B95: 56 | C95: 1 | D95: 2029-09-02 | E95: 2029-10-02 | F95: 30 | G95: 22002.43304 | H95: 20875.24323 | I95: =+IF(B95="","",_xlfn.SWITCH($C$8,"PLAN 50/50",IF(B95=$C$16,$G$40,0),"CUOTA FLEX",IF(B95=$C$16,$G$40,0),"COMPRA MAESTRA",IF(B95=$C$16+1,$C$24-SUM(J95:M95),C95*$C$27-SUM(J95:M95)),C95*$C$27-SUM(J95:M95))) -> 1127.189811 | J95: 352.15 | K95: 27.94308996 | L95: 320 | M95: 8.75 | N95: =IF(B95="","",_xlfn.SWITCH($C$8,"PLAN 50/50",IF(B95=$C$16,$H$40+SUM(J95:M95),SUM(I95:M95)),"COMPRA MAESTRA",IF(B95=$C$16+1,$C$24,SUM(I95:M95)),SUM(I95:M95))) -> 1836.032901
B96: 57 | C96: 1 | D96: 2029-10-02 | E96: 2029-11-02 | F96: 31 | G96: 20875.24323 | H96: 19739.80189 | I96: =+IF(B96="","",_xlfn.SWITCH($C$8,"PLAN 50/50",IF(B96=$C$16,$G$40,0),"CUOTA FLEX",IF(B96=$C$16,$G$40,0),"COMPRA MAESTRA",IF(B96=$C$16+1,$C$24-SUM(J96:M96),C96*$C$27-SUM(J96:M96)),C96*$C$27-SUM(J96:M96))) -> 1135.441342 | J96: 345.33 | K96: 26.5115589 | L96: 320 | M96: 8.75 | N96: =IF(B96="","",_xlfn.SWITCH($C$8,"PLAN 50/50",IF(B96=$C$16,$H$40+SUM(J96:M96),SUM(I96:M96)),"COMPRA MAESTRA",IF(B96=$C$16+1,$C$24,SUM(I96:M96)),SUM(I96:M96))) -> 1836.032901
B97: 58 | C97: 1 | D97: 2029-11-02 | E97: 2029-12-02 | F97: 30 | G97: 19739.80189 | H97: 18573.51853 | I97: =+IF(B97="","",_xlfn.SWITCH($C$8,"PLAN 50/50",IF(B97=$C$16,$G$40,0),"CUOTA FLEX",IF(B97=$C$16,$G$40,0),"COMPRA MAESTRA",IF(B97=$C$16+1,$C$24-SUM(J97:M97),C97*$C$27-SUM(J97:M97)),C97*$C$27-SUM(J97:M97))) -> 1166.283353 | J97: 315.93 | K97: 25.0695484 | L97: 320 | M97: 8.75 | N97: =IF(B97="","",_xlfn.SWITCH($C$8,"PLAN 50/50",IF(B97=$C$16,$H$40+SUM(J97:M97),SUM(I97:M97)),"COMPRA MAESTRA",IF(B97=$C$16+1,$C$24,SUM(I97:M97)),SUM(I97:M97))) -> 1836.032901
B98: 59 | C98: 1 | D98: 2029-12-02 | E98: 2030-01-02 | F98: 31 | G98: 18573.51853 | H98: 17397.084 | I98: =+IF(B98="","",_xlfn.SWITCH($C$8,"PLAN 50/50",IF(B98=$C$16,$G$40,0),"CUOTA FLEX",IF(B98=$C$16,$G$40,0),"COMPRA MAESTRA",IF(B98=$C$16+1,$C$24-SUM(J98:M98),C98*$C$27-SUM(J98:M98)),C98*$C$27-SUM(J98:M98))) -> 1176.434533 | J98: 307.26 | K98: 23.58836854 | L98: 320 | M98: 8.75 | N98: =IF(B98="","",_xlfn.SWITCH($C$8,"PLAN 50/50",IF(B98=$C$16,$H$40+SUM(J98:M98),SUM(I98:M98)),"COMPRA MAESTRA",IF(B98=$C$16+1,$C$24,SUM(I98:M98)),SUM(I98:M98))) -> 1836.032901
B99: 60 | C99: 1 | D99: 2030-01-02 | E99: 2030-02-02 | F99: 31 | G99: 17397.084 | H99: 16199.6954 | I99: =+IF(B99="","",_xlfn.SWITCH($C$8,"PLAN 50/50",IF(B99=$C$16,$G$40,0),"CUOTA FLEX",IF(B99=$C$16,$G$40,0),"COMPRA MAESTRA",IF(B99=$C$16+1,$C$24-SUM(J99:M99),C99*$C$27-SUM(J99:M99)),C99*$C$27-SUM(J99:M99))) -> 1197.388605 | J99: 287.8 | K99: 22.09429668 | L99: 320 | M99: 8.75 | N99: =IF(B99="","",_xlfn.SWITCH($C$8,"PLAN 50/50",IF(B99=$C$16,$H$40+SUM(J99:M99),SUM(I99:M99)),"COMPRA MAESTRA",IF(B99=$C$16+1,$C$24,SUM(I99:M99)),SUM(I99:M99))) -> 1836.032901
B100: 61 | C100: 1 | D100: 2030-02-02 | E100: 2030-03-02 | F100: 28 | G100: 16199.6954 | H100: 14954.84611 | I100: =+IF(B100="","",_xlfn.SWITCH($C$8,"PLAN 50/50",IF(B100=$C$16,$G$40,0),"CUOTA FLEX",IF(B100=$C$16,$G$40,0),"COMPRA MAESTRA",IF(B100=$C$16+1,$C$24-SUM(J100:M100),C100*$C$27-SUM(J100:M100)),C100*$C$27-SUM(J100:M100))) -> 1244.849288 | J100: 241.86 | K100: 20.57361315 | L100: 320 | M100: 8.75 | N100: =IF(B100="","",_xlfn.SWITCH($C$8,"PLAN 50/50",IF(B100=$C$16,$H$40+SUM(J100:M100),SUM(I100:M100)),"COMPRA MAESTRA",IF(B100=$C$16+1,$C$24,SUM(I100:M100)),SUM(I100:M100))) -> 1836.032901
B101: 62 | C101: 1 | D101: 2030-03-02 | E101: 2030-04-02 | F101: 31 | G101: 14954.84611 | H101: 13713.94586 | I101: =+IF(B101="","",_xlfn.SWITCH($C$8,"PLAN 50/50",IF(B101=$C$16,$G$40,0),"CUOTA FLEX",IF(B101=$C$16,$G$40,0),"COMPRA MAESTRA",IF(B101=$C$16+1,$C$24-SUM(J101:M101),C101*$C$27-SUM(J101:M101)),C101*$C$27-SUM(J101:M101))) -> 1240.900247 | J101: 247.39 | K101: 18.99265456 | L101: 320 | M101: 8.75 | N101: =IF(B101="","",_xlfn.SWITCH($C$8,"PLAN 50/50",IF(B101=$C$16,$H$40+SUM(J101:M101),SUM(I101:M101)),"COMPRA MAESTRA",IF(B101=$C$16+1,$C$24,SUM(I101:M101)),SUM(I101:M101))) -> 1836.032901
B102: 63 | C102: 1 | D102: 2030-04-02 | E102: 2030-05-02 | F102: 30 | G102: 13713.94586 | H102: 12443.56967 | I102: =+IF(B102="","",_xlfn.SWITCH($C$8,"PLAN 50/50",IF(B102=$C$16,$G$40,0),"CUOTA FLEX",IF(B102=$C$16,$G$40,0),"COMPRA MAESTRA",IF(B102=$C$16+1,$C$24-SUM(J102:M102),C102*$C$27-SUM(J102:M102)),C102*$C$27-SUM(J102:M102))) -> 1270.37619 | J102: 219.49 | K102: 17.41671125 | L102: 320 | M102: 8.75 | N102: =IF(B102="","",_xlfn.SWITCH($C$8,"PLAN 50/50",IF(B102=$C$16,$H$40+SUM(J102:M102),SUM(I102:M102)),"COMPRA MAESTRA",IF(B102=$C$16+1,$C$24,SUM(I102:M102)),SUM(I102:M102))) -> 1836.032901
B103: 64 | C103: 1 | D103: 2030-05-02 | E103: 2030-06-02 | F103: =+IF(B103="","",_xlfn.DAYS(E103,D103)) -> 31 | G103: 12443.56967 | H103: 11157.94011 | I103: =+IF(B103="","",_xlfn.SWITCH($C$8,"PLAN 50/50",IF(B103=$C$16,$G$40,0),"CUOTA FLEX",IF(B103=$C$16,$G$40,0),"COMPRA MAESTRA",IF(B103=$C$16+1,$C$24-SUM(J103:M103),C103*$C$27-SUM(J103:M103)),C103*$C$27-SUM(J103:M103))) -> 1285.629568 | J103: 205.85 | K103: 15.80333348 | L103: 320 | M103: 8.75 | N103: =IF(B103="","",_xlfn.SWITCH($C$8,"PLAN 50/50",IF(B103=$C$16,$H$40+SUM(J103:M103),SUM(I103:M103)),"COMPRA MAESTRA",IF(B103=$C$16+1,$C$24,SUM(I103:M103)),SUM(I103:M103))) -> 1836.032901
B104: =+IFERROR(IF($C$8="COMPRA MAESTRA",IF(B103<=$C$16,B103+1,""),IF(B103+1<=$C$16,B103+1,"")),"") -> 65 | C104: =+IF(B104="","",IF(OR(MONTH(E104)=$C$25,MONTH(E104)=$C$26),2,1)) -> 1 | D104: 2030-06-02 | E104: 2030-07-02 | F104: 30 | G104: 11157.94011 | H104: 9843.407788 | I104: =+IF(B104="","",_xlfn.SWITCH($C$8,"PLAN 50/50",IF(B104=$C$16,$G$40,0),"CUOTA FLEX",IF(B104=$C$16,$G$40,0),"COMPRA MAESTRA",IF(B104=$C$16+1,$C$24-SUM(J104:M104),C104*$C$27-SUM(J104:M104)),C104*$C$27-SUM(J104:M104))) -> 1314.532317 | J104: 178.58 | K104: =IF(B104="","",G104*$C$21) -> 14.17058393 | L104: =+IF(B104="","",$C$10*$C$22/12) -> 320 | M104: 8.75 | N104: =IF(B104="","",_xlfn.SWITCH($C$8,"PLAN 50/50",IF(B104=$C$16,$H$40+SUM(J104:M104),SUM(I104:M104)),"COMPRA MAESTRA",IF(B104=$C$16+1,$C$24,SUM(I104:M104)),SUM(I104:M104))) -> 1836.032901
B105: 66 | C105: 1 | D105: =IF(B105="","",EDATE(E105,-1)) -> 2030-07-02 | E105: 2030-08-02 | F105: 31 | G105: =IF(B105="","",G104-I104) -> 9843.407788 | H105: 8511.466015 | I105: =+IF(B105="","",_xlfn.SWITCH($C$8,"PLAN 50/50",IF(B105=$C$16,$G$40,0),"CUOTA FLEX",IF(B105=$C$16,$G$40,0),"COMPRA MAESTRA",IF(B105=$C$16+1,$C$24-SUM(J105:M105),C105*$C$27-SUM(J105:M105)),C105*$C$27-SUM(J105:M105))) -> 1331.941773 | J105: 162.84 | K105: 12.50112789 | L105: 320 | M105: =+IF(B105="","",$C$23) -> 8.75 | N105: =IF(B105="","",_xlfn.SWITCH($C$8,"PLAN 50/50",IF(B105=$C$16,$H$40+SUM(J105:M105),SUM(I105:M105)),"COMPRA MAESTRA",IF(B105=$C$16+1,$C$24,SUM(I105:M105)),SUM(I105:M105))) -> 1836.032901
B106: 67 | C106: 1 | D106: 2030-08-02 | E106: =IF(B106="","",EDATE(E105,1)) -> 2030-09-02 | F106: 31 | G106: 8511.466015 | H106: 7155.792675 | I106: =+IF(B106="","",_xlfn.SWITCH($C$8,"PLAN 50/50",IF(B106=$C$16,$G$40,0),"CUOTA FLEX",IF(B106=$C$16,$G$40,0),"COMPRA MAESTRA",IF(B106=$C$16+1,$C$24-SUM(J106:M106),C106*$C$27-SUM(J106:M106)),C106*$C$27-SUM(J106:M106))) -> 1355.673339 | J106: =IF(B106="","",ROUND(((1+$C$20)^(F106/360)-1)*G106,2)) -> 140.8 | K106: 10.80956184 | L106: 320 | M106: 8.75 | N106: =IF(B106="","",_xlfn.SWITCH($C$8,"PLAN 50/50",IF(B106=$C$16,$H$40+SUM(J106:M106),SUM(I106:M106)),"COMPRA MAESTRA",IF(B106=$C$16+1,$C$24,SUM(I106:M106)),SUM(I106:M106))) -> 1836.032901
B107: 68 | C107: 1 | D107: 2030-09-02 | E107: 2030-10-02 | F107: 30 | G107: 7155.792675 | H107: 5772.127631 | I107: =+IF(B107="","",_xlfn.SWITCH($C$8,"PLAN 50/50",IF(B107=$C$16,$G$40,0),"CUOTA FLEX",IF(B107=$C$16,$G$40,0),"COMPRA MAESTRA",IF(B107=$C$16+1,$C$24-SUM(J107:M107),C107*$C$27-SUM(J107:M107)),C107*$C$27-SUM(J107:M107))) -> 1383.665045 | J107: 114.53 | K107: 9.087856697 | L107: 320 | M107: 8.75 | N107: =IF(B107="","",_xlfn.SWITCH($C$8,"PLAN 50/50",IF(B107=$C$16,$H$40+SUM(J107:M107),SUM(I107:M107)),"COMPRA MAESTRA",IF(B107=$C$16+1,$C$24,SUM(I107:M107)),SUM(I107:M107))) -> 1836.032901
B108: 69 | C108: 1 | D108: 2030-10-02 | E108: 2030-11-02 | F108: 31 | G108: 5772.127631 | H108: 4367.665332 | I108: =+IF(B108="","",_xlfn.SWITCH($C$8,"PLAN 50/50",IF(B108=$C$16,$G$40,0),"CUOTA FLEX",IF(B108=$C$16,$G$40,0),"COMPRA MAESTRA",IF(B108=$C$16+1,$C$24-SUM(J108:M108),C108*$C$27-SUM(J108:M108)),C108*$C$27-SUM(J108:M108))) -> 1404.462299 | J108: 95.49 | K108: 7.330602091 | L108: 320 | M108: 8.75 | N108: =IF(B108="","",_xlfn.SWITCH($C$8,"PLAN 50/50",IF(B108=$C$16,$H$40+SUM(J108:M108),SUM(I108:M108)),"COMPRA MAESTRA",IF(B108=$C$16+1,$C$24,SUM(I108:M108)),SUM(I108:M108))) -> 1836.032901
B109: 70 | C109: 1 | D109: 2030-11-02 | E109: 2030-12-02 | F109: 30 | G109: 4367.665332 | H109: 2935.829365 | I109: =+IF(B109="","",_xlfn.SWITCH($C$8,"PLAN 50/50",IF(B109=$C$16,$G$40,0),"CUOTA FLEX",IF(B109=$C$16,$G$40,0),"COMPRA MAESTRA",IF(B109=$C$16+1,$C$24-SUM(J109:M109),C109*$C$27-SUM(J109:M109)),C109*$C$27-SUM(J109:M109))) -> 1431.835966 | J109: 69.9 | K109: 5.546934971 | L109: 320 | M109: 8.75 | N109: =IF(B109="","",_xlfn.SWITCH($C$8,"PLAN 50/50",IF(B109=$C$16,$H$40+SUM(J109:M109),SUM(I109:M109)),"COMPRA MAESTRA",IF(B109=$C$16+1,$C$24,SUM(I109:M109)),SUM(I109:M109))) -> 1836.032901
B110: 71 | C110: 1 | D110: 2030-12-02 | E110: 2031-01-02 | F110: 31 | G110: 2935.829365 | H110: 1480.844967 | I110: =+IF(B110="","",_xlfn.SWITCH($C$8,"PLAN 50/50",IF(B110=$C$16,$G$40,0),"CUOTA FLEX",IF(B110=$C$16,$G$40,0),"COMPRA MAESTRA",IF(B110=$C$16+1,$C$24-SUM(J110:M110),C110*$C$27-SUM(J110:M110)),C110*$C$27-SUM(J110:M110))) -> 1454.984398 | J110: 48.57 | K110: 3.728503294 | L110: 320 | M110: 8.75 | N110: =IF(B110="","",_xlfn.SWITCH($C$8,"PLAN 50/50",IF(B110=$C$16,$H$40+SUM(J110:M110),SUM(I110:M110)),"COMPRA MAESTRA",IF(B110=$C$16+1,$C$24,SUM(I110:M110)),SUM(I110:M110))) -> 1836.032901
B111: 72 | C111: 1 | D111: 2031-01-02 | E111: 2031-02-02 | F111: 31 | G111: 1480.844967 | H111: -0.05726073443 | I111: =+IF(B111="","",_xlfn.SWITCH($C$8,"PLAN 50/50",IF(B111=$C$16,$G$40,0),"CUOTA FLEX",IF(B111=$C$16,$G$40,0),"COMPRA MAESTRA",IF(B111=$C$16+1,$C$24-SUM(J111:M111),C111*$C$27-SUM(J111:M111)),C111*$C$27-SUM(J111:M111))) -> 1480.902228 | J111: 24.5 | K111: 1.880673109 | L111: 320 | M111: 8.75 | N111: =IF(B111="","",_xlfn.SWITCH($C$8,"PLAN 50/50",IF(B111=$C$16,$H$40+SUM(J111:M111),SUM(I111:M111)),"COMPRA MAESTRA",IF(B111=$C$16+1,$C$24,SUM(I111:M111)),SUM(I111:M111))) -> 1836.032901
B112: =+MAX(B40:B111) -> 72 | H112: =+OFFSET(B40,B112-1,6) -> -0.05726073443 | I112: =+SUM(I40:I111) -> 61467.95804 | J112: =+SUM(J40:J111) -> 43639.61 | K112: 3416.800843 | L112: 23040 | M112: 630 | N112: 132194.3689
B115: Notas:
B116: 1. La información detallada en el presente cronograma es preliminar y referencial, se genera en base a los datos ingresados y podría no coincidir con aquello que se muestre en el cronograma final. La fecha del primer vencimiento y el valor de la cuota que aquí se muestran, pueden variar según la fecha de activación del crédito, de la determinación del monto asegurado (precio final del vehículo), entre otros. El presente Cronograma es un documento preliminar que será reemplazado por el documento final (Cronograma Final), en un plazo no mayor a treinta (30) días hábiles desde la entrega del preliminar. El monto principal objeto del crédito efectivamente aprobado será comunicado al momento de desembolsar el mismo, el cual inclusive podría no otorgarse como resultado de la evaluación crediticia. Ante el incumplimiento del pago según las condiciones pactadas, se procede a realizar el reporte, con la calificación correspondiente, a la Central de Riesgos. 2. El Seguro de Desgravamen se calcula sobre el saldo del monto financiado y el Seguro Vehicular se calcula sobre el Monto Asegurado. El costo de estos seguros es el cobrado por la Compañía de Seguros de acuerdo a las condiciones establecidas por ésta, por lo que podría estar sujeta a variación y/o recargo. En el caso del Seguro de Desgravamen se podrá elegir libremente entre dos planes de seguros: básico o con devolución de primas. Se podrá contratar libremente el/os seguro/s Consumer; o, contratar su/s póliza/s directamente con una compañía de seguros y solicitar el endoso de la/s misma/s a favor de Santander Consumer hasta la cancelación total del préstamo, condicionado/s a la evaluación correspondiente. No se cobra comisión por el endoso de una póliza de vida que reemplace al seguro de desgravamen. El procedimiento para el endoso se en cuentraen www.santanderconsumer.com.pe, sección Portal de Transparencia. 3. El monto asegurado es el precio final del vehículo materia del préstamo. Se utiliza para la determinación del costo del Seguro Vehicular. 4. Los días de gracia es el periodo que transcurre entre la fecha de desembolso del préstamo y el día que se inicia el devengo de la primera cuota a pagar, lo cual ocurre un mes antes del primer vencimiento de pago. Durante estos días de gracia se generan intereses compensatorios, así como la obligación del pago de los seguros correspondientes. Los intereses compensatorios y el pago de los seguros generados durante los días de gracia serán financiados en las mismas condiciones del préstamo formando parte del capital para el cálculo del importe de las cuotas a pagar. El "Monto de Préstamo Capitalizado" es la suma del "Monto del Préstamo" más el "Monto a Capitalizar" (que incluye los intereses, comisiones y gastos generados en los días de gracia). 5. LA POSITIVA es la compañía de seguros que emite las pólizas de seguro vehicular Nro. 230240533 / 230241627 / 230240509 / 230241636 / 230240536 / 230241704 / 230240538 / 2302419 / 230240521 / 230240522 en soles y Nro. 230240524 / 230241547 / 2230240535 / 230241635 / 230240518 / 230241703 / 230240519 / 230241697 / 230240510 / 230240511 en dólares y MAPFRE SEGUROS, que emite las pólizas N” 30103244 / 30103245/30102227 en Soles y N° 30103243 / 30103245 / 30102226 en dólares. Seguro vehicular, las principales coberturas de los riesgos autorizados en caso se siniestros son: Daño Propio (robo y pérdida total o parcial); responsabilidad civil frente a terceros, responsabilidad civil de los ocupantes del vehículo (muerte, invalidez permanente, gastos de curación, gastos de sepelio); accesorios musicales, Riesgos de la naturaleza; ausencia de control, responsabilidad civil por ausencia de control; etc. Los valores cubiertos, deducibles, y cláusulas adicionales corresponden a cada aseguradora y se detallan en la póliza del seguro vehicular.
